Workbook

Sheet 1. Info
AB1: Algoma Power Inc.
AB2: Atikokan Hydro Inc.
AB3: Attawapiskat Power Corp.
AB4: Bluewater Power Distribution Corporation
AB5: Brant County Power Inc.
AB6: Brantford Power Inc.
AB7: Burlington Hydro Inc.
AB8: Cambridge and North Dumfries Hydro Inc.
AB9: Canadian Niagara Power Inc. - Eastern Ontario Power
AB10: Canadian Niagara Power Inc. - Fort Erie
AB11: Canadian Niagara Power Inc. - Port Colborne Hydro Inc.
F12: Version | G12: 2 | AB12: Centre Wellington Hydro Ltd.
AB13: Clinton Power Corporation
C14: Utility Name | D14: PowerStream Inc. - South | AB14: COLLUS Power Corporation
AB15: Cooperative Hydro Embrun Inc.
C16: Assigned EB Number | D16: EB-2015-xxxx | AB16: E.L.K. Energy Inc.
AB17: Enersource Hydro Mississauga Inc.
C18: Name and Title | D18: Tom Barrett, Manager Rate Applications | AB18: Entegrus Powerlines Inc. - Chatham-Kent
AB19: Entegrus Powerlines Inc. - Dutton
C20: Phone Number | D20: 905-532-4640 | AB20: Entegrus Powerlines Inc. - Newbury
AB21: Entegrus Powerlines Inc. - Strathroy, Mounth Brydges & Parkhill
C22: Email Address | D22: tom.barrett@powerstream.ca | AB22: ENWIN Utilities Ltd.
AB23: Erie Thames Powerlines Corporation
C24: Date | D24: 2015-04-30 | AB24: Espanola Regional Hydro Distribution Corporation
AB25: Essex Powerlines Corporation
C26: Last COS Re-based Year | D26: 2013 | AB26: Festival Hydro Inc.
AB27: Festival Hydro Inc. - Hensall
AB28: Fort Albany Power Corporation
A29: Note: Drop-down lists are shaded blue; Input cells are shaded green. | AB29: Fort Frances Power Corporation
AB30: Greater Sudbury Hydro Inc.
AB31: Grimsby Power Inc.
AB32: Guelph Hydro Electric Systems Inc.
AB33: Haldimand County Hydro Inc.
AB34: Halton Hills Hydro Inc.
AB35: Hearst Power Distribution Company Limited
AB36: Horizon Utilities Corporation
AB37: Hydro 2000 Inc.
AB38: Hydro Hawkesbury Inc.
AB39: Hydro One Brampton Networks Inc.
AB40: Hydro One Networks Inc.
AB41: Hydro Ottawa Limited
AB42: Innisfil Hydro Distribution Systems Limited
AB43: Kashechewan Power Corporation
AB44: Kenora Hydro Electric Corporation Ltd.
AB45: Kingston Hydro Corporation
AB46: Kitchener-Wilmot Hydro Inc.
AB47: Lakefront Utilities Inc.
AB48: Lakeland Power Distribution Ltd.
AB49: London Hydro Inc.
AB50: Midland Power Utility Corporation
AB51: Milton Hydro Distribution inc.
AB52: Newmarket - Tay Power Distribution Ltd. - Newmarket
AB53: Newmarket - Tay Power Distribution Ltd. - Tay
AB54: Niagara Peninsula Energy Inc. - Niagara Falls
AB55: Niagara Peninsula Energy Inc. - Peninsula West
AB56: Niagara-on-the-Lake Hydro Inc.
AB57: Norfolk Power Distribution Inc.
AB58: North Bay Hydro Distribution Limited
AB59: Northern Ontario Wires Inc.
AB60: Oakville Hydro Electricity Distribution Inc.
AB61: Orangeville Hydro Limited
AB62: Orillia Power Distribution Corporation
AB63: Oshawa PUC Networks Inc.
AB64: Ottawa River Power Corporation
AB65: Parry Sound Power Corporation
AB66: Peterborough Distribution Incorporated
AB67: PowerStream Inc. - Barrie
AB68: PowerStream Inc. - South
AB69: PUC Distribution Inc.
AB70: Renfrew Hydro Inc.
AB71: Rideau St. Lawrence Distribution Inc.
AB72: Sioux Lookout Hydro Inc.
AB73: St. Thomas Energy Inc.
AB74: Thunder Bay Hydro Electricity Distribution Inc.
AB75: Tillsonburg Hydro Inc.
AB76: Toronto Hydro-Electric System Limited
AB77: Veridian Connections Inc.
AB78: Veridian Connections Inc. - Gravenhurst
AB79: Wasaga Distribution Inc.
AB80: Waterloo North Hydro Inc.
AB81: Welland Hydro-Electric System Corp.
AB82: Wellington North Power Inc.
AB83: West Coast Huron Energy Inc.
AB84: West Perth Power Inc.
AB85: Westario Power Inc.
AB86: Whitby Hydro Electric Corporation
AB87: Woodstock Hydro Services Inc.

Sheet Table of Contents
AA1: 1
AA2: 2012
AA3: 2013
AA4: 2014
AA5: 2015
AA6: 2016
D16: 1. Info | F16: K. Sch 13 Tax Reserves Bridge
D17: A. Data Input Sheet | F17: L. Sch 7-1 Loss Cfwd Bridge
D18: B. Tax Rates & Exemptions | F18: M. Adj. Taxable Income Bridge
D19: C. Sch 8 Hist | F19: N. PILs,Tax Provision Bridge
D20: D. Schedule 10 CEC Hist | F20: O. Schedule 8 CCA Test Year
D21: E. Sch 13 Tax Reserves Hist | F21: P. Schedule 10 CEC Test Year
D22: F. Sch 7-1 Loss Cfwd Hist | F22: Q Sch 13 Tax Reserve Test Year
D23: G. Adj. Taxable Income Historic | F23: R. Sch 7-1 Loss Cfwd
D24: H. PILs,Tax Provision Historic | F24: S. Taxable Income Test Year
D25: I. Schedule 8 CCA Bridge Year | F25: T. PILs,Tax Provision
D26: J. Schedule 10 CEC Bridge Year

Sheet A. Data Input Sheet
G7: Test Year 1 (2016) | H7: Test Year 2 (2017) | I7: Test Year 3 (2018) | J7: Test Year 4 (2019) | K7: Test Year 5 (2020)
C9: Rate Base | G9: =[3]!RateBase2016 -> 1071267833 | H9: =[3]!RateBase2017 -> 1085976831 | I9: =[3]!RateBase2018 -> 1160255449 | J9: =[3]!RateBase2019 -> 1230251246 | K9: =[3]!RateBase2020 -> 1300891120
C11: Return on Ratebase
C12: Deemed ShortTerm Debt | G12: =G$9*G24 -> 42850713.32 | H12: =H$9*H24 -> 43439073.24 | I12: 46410217.95 | J12: 49210049.82 | K12: 52035644.79 | L12: W = S * T
C13: Deemed Long Term Debt | G13: =G$9*G25 -> 599909986.4 | H13: 608147025.4 | I13: 649743051.3 | J13: 688940697.5 | K13: 728499027.1 | L13: X = S * U
C14: Deemed Equity | G14: 428507133.2 | H14: 434390732.4 | I14: 464102179.5 | J14: 492100498.2 | K14: 520356447.9 | L14: Y = S * V
C16: Short Term Interest Rate | G16: =G12*G28 -> 707036.7697 | H16: =H12*H28 -> 1303172.197 | I16: 1392306.539 | J16: 1476301.495 | K16: 1561069.344 | L16: AC = W * Z
C17: Long Term Interest | G17: =G13*G29 -> 23749049.03 | H17: 24361381.9 | I17: 26173060.61 | J17: 27752026.9 | K17: 29345522.28 | L17: AD = X * AA
C18: Return on Equity (Regulatory Income) | G18: 39851163.39 | H18: 40398338.12 | I18: 43161502.69 | J18: 45765346.34 | K18: 48393149.65 | L18: AE = Y * AB
C19: Return on Rate Base | G19: =SUM(G16:G18) -> 64307249.18 | H19: =SUM(H16:H18) -> 66062892.22 | I19: 70726869.85 | J19: 74993674.73 | K19: 79299741.28 | L19: AF = AC + AD + AE
C22: Return on Rate Base Parameteres
C24: Deemed ShortTerm Debt % | F24: T | G24: 0.04 | H24: 0.04 | I24: 0.04 | J24: 0.04 | K24: 0.04
C25: Deemed Long Term Debt % | F25: U | G25: 0.56 | H25: 0.56 | I25: 0.56 | J25: 0.56 | K25: 0.56
C26: Deemed Equity % | F26: V | G26: 0.4 | H26: 0.4 | I26: 0.4 | J26: 0.4 | K26: 0.4
C28: Short Term Interest Rate | F28: Z | G28: ='[3]Target Net Income '!J$23 -> 0.0165 | H28: ='[3]Target Net Income '!K$23 -> 0.03 | I28: ='[3]Target Net Income '!L$23 -> 0.03 | J28: ='[3]Target Net Income '!M$23 -> 0.03 | K28: ='[3]Target Net Income '!N$23 -> 0.03
C29: Long Term Interest | F29: AA | G29: ='[3]Target Net Income '!J$20 -> 0.03958768743 | H29: ='[3]Target Net Income '!K$20 -> 0.0400583755 | I29: ='[3]Target Net Income '!L$20 -> 0.04028217087 | J29: ='[3]Target Net Income '!M$20 -> 0.04028217087 | K29: ='[3]Target Net Income '!N$20 -> 0.04028217087
C30: Return on Equity | F30: AB | G30: 0.093 | H30: 0.093 | I30: 0.093 | J30: 0.093 | K30: 0.093
C33: Questions that must be answered | G33: Historic 2014 | H33: Bridge 2015 | I33: Test Year 1 2016 | J33: Test Year 2 2017 | K33: Test Year 3 2018 | L33: Test Year 4 2019 | M33: Test Year 5 2010
C35: 1. Does the applicant have any Investment Tax Credits (ITC)? | G35: Yes
C37: 2. Does the applicant have any SRED Expenditures?
C39: 3. Does the applicant have any Capital Gains or Losses for tax purposes?
C41: 4. Does the applicant have any Capital Leases? | G41: No
C43: 5. Does the applicant have any Loss Carry-Forwards (non-capital or net capital)?
C45: 6. Since 1999, has the applicant acquired another regulated applicant's assets?
C47: 7. Did the applicant pay dividends?
C48: If Yes, please describe what was the tax treatment in the manager's summary.
C50: 8. Did the applicant elect to capitalize interest incurred on CWIP for tax purposes?

Sheet B. Tax Rates & Exemptions
C9: Tax Rates
C10: Federal & Provincial | E10: Effective | F10: Effective | G10: Effective | H10: Effective | I10: Effective | J10: Effective | K10: Effective | L10: Effective | M10: Effective | N10: Effective
C11: As of June 20, 2012 | E11: 2011-01-01 | F11: 2012-01-01 | G11: 2013-01-01 | H11: 2014-01-01 | I11: 2015-01-01 | J11: 2016-01-01 | K11: 2017-01-01 | L11: 2018-01-01 | M11: 2019-01-01 | N11: 2020-01-01
C13: Federal income tax
C14: General corporate rate | E14: 0.38 | F14: 0.38 | G14: 0.38 | H14: 0.38 | I14: 0.38 | J14: 0.38 | K14: 0.38 | L14: 0.38 | M14: 0.38 | N14: 0.38
C15: Federal tax abatement | E15: -0.1 | F15: -0.1 | G15: -0.1 | H15: -0.1 | I15: -0.1 | J15: -0.1 | K15: -0.1 | L15: -0.1 | M15: -0.1 | N15: -0.1
C16: Adjusted federal rate | E16: =SUM(E14:E15) -> 0.28 | F16: =SUM(F14:F15) -> 0.28 | G16: =SUM(G14:G15) -> 0.28 | H16: =SUM(H14:H15) -> 0.28 | I16: =SUM(I14:I15) -> 0.28 | J16: 0.28 | K16: 0.28 | L16: 0.28 | M16: 0.28 | N16: 0.28
C18: Rate reduction | E18: -0.115 | F18: -0.13 | G18: -0.13 | H18: -0.13 | I18: -0.13 | J18: -0.13 | K18: -0.13 | L18: -0.13 | M18: -0.13 | N18: -0.13
E19: =E16+E18 -> 0.165 | F19: =F16+F18 -> 0.15 | G19: =G16+G18 -> 0.15 | H19: =H16+H18 -> 0.15 | I19: =I16+I18 -> 0.15 | J19: 0.15 | K19: 0.15 | L19: 0.15 | M19: 0.15 | N19: 0.15
C21: Ontario income tax | E21: =0.12*0.5+0.115*0.5 -> 0.1175 | F21: 0.115 | G21: 0.115 | H21: 0.115 | I21: 0.115 | J21: 0.115 | K21: 0.115 | L21: 0.115 | M21: 0.115 | N21: 0.115
C23: Combined federal and Ontario | E23: =E19+E21 -> 0.2825 | F23: =F19+F21 -> 0.265 | G23: =G19+G21 -> 0.265 | H23: =H19+H21 -> 0.265 | I23: =I19+I21 -> 0.265 | J23: 0.265 | K23: 0.265 | L23: 0.265 | M23: 0.265 | N23: 0.265
C25: Federal & Ontario Small Business
C26: Federal small business threshold | E26: 500000 | F26: 500000 | G26: 500000 | H26: 500000 | I26: 500000 | J26: 500000 | K26: 500000 | L26: 500000 | M26: 500000 | N26: 500000
C27: Ontario Small Business Threshold | E27: 500000 | F27: 500000 | G27: 500000 | H27: 500000 | I27: 500000 | J27: 500000 | K27: 500000 | L27: 500000 | M27: 500000 | N27: 500000
C29: Federal small business rate | E29: 0.11 | F29: 0.11 | G29: 0.11 | H29: 0.11 | I29: 0.11 | J29: 0.11 | K29: 0.11 | L29: 0.11 | M29: 0.11 | N29: 0.11
C31: Ontario small business rate | E31: 0.045 | F31: 0.045 | G31: 0.045 | H31: 0.045 | I31: 0.045 | J31: 0.045 | K31: 0.045 | L31: 0.045 | M31: 0.045 | N31: 0.045

Sheet C. Sch 8 Hist
C9: Schedule 8 - Historical Year
C11: Class | D11: Class Description | E11: UCC End of Year Historic per tax returns | F11: Less: Non-Distribution Portion | G11: UCC Regulated Historic Year
C12: 1 | D12: Distribution System - post 1987 | E12: 380866553 | G12: =+E12-F12 -> 380866553
C13: 1 Enhanced | D13: Non-residential Buildings Reg. 1100(1)(a.1) election | G13: =+E13-F13 -> 0
C14: 2 | D14: Distribution System - pre 1988 | E14: 47884706 | G14: =+E14-F14 -> 47884706
C15: 8 | D15: General Office/Stores Equip | E15: 37366014 | G15: 37366014
C16: 10 | D16: Computer Hardware/ Vehicles | E16: 4999488 | G16: 4999488
C17: 10.1 | D17: Certain Automobiles | G17: 0
C18: 12 | D18: Computer Software | E18: 697008 | G18: 697008
C19: 13 1 | D19: Lease # 1 | E19: 166462 | G19: 166462
C20: 13 2 | D20: Lease #2 | E20: 3592709 | G20: 3592709
C21: 13 3 | D21: Lease # 3 | E21: 486637 | G21: 486637
C22: 13 4 | D22: Lease # 4 | E22: 940498 | G22: 940498
C23: 14 | D23: Franchise | G23: 0
C24: 17 | D24: New Electrical Generating Equipment Acq'd after Feb 27/00 Other Than Bldgs | E24: 365506 | G24: 365506
C25: 42 | D25: Fibre Optic Cable | G25: =+E25-F25 -> 0
C26: 43.1 | D26: Certain Energy-Efficient Electrical Generating Equipment | G26: 0
C27: 43.2 | D27: Certain Clean Energy Generation Equipment | G27: 0
C28: 45 | D28: Computers & Systems Software acq'd post Mar 22/04 | E28: 36306 | G28: 36306
C29: 46 | D29: Data Network Infrastructure Equipment (acq'd post Mar 22/04) | G29: 0
C30: 47 | D30: Distribution System - post February 2005 | E30: 325433485 | G30: 325433485
C31: 50 | D31: Data Network Infrastructure Equipment - post Mar 2007 | E31: 2575472 | G31: 2575472
C32: 52 | D32: Computer Hardware and system software | G32: 0
C33: 95 | D33: CWIP | E33: 68314217 | G33: 68314217
G34: 0
G35: 0
G36: 0
G37: 0
G38: 0
G39: 0
G40: 0
G41: 0
G42: 0
G43: 0
D44: SUB-TOTAL - UCC | E44: =SUM(E12:E43) -> 873725061 | F44: =SUM(F12:F43) -> 0 | G44: =SUM(G12:G43) -> 873725061

Sheet D. Schedule 10 CEC Hist
C8: Schedule 10 CEC - Historical Year
C10: Cumulative Eligible Capital | K10: 5784065
C11: Additions
C12: Cost of Eligible Capital Property Acquired during Test Year | G12: 46195
C14: Other Adjustments | G14: 0
C16: Subtotal | G16: =SUM(G12,G14) -> 46195 | I16: x 3/4 = | J16: =3/4*G16 -> 34646.25
C18: Non-taxable portion of a non-arm's length transferor's gain realized on the | G18: 0 | I18: x 1/2 = | J18: =IF((G18*0.5)<0, 0, G18*0.5) -> 0
C19: transfer of an ECP to the Corporation after Friday, December 20, 2002
J20: =IF((J16-J18)<0,0,J16-J18) -> 34646.25 | K20: =J20 -> 34646.25
C22: Amount transferred on amalgamation or wind-up of subsidiary | G22: 0 | K22: =G22 -> 0
F24: Subtotal | K24: =SUM(K10,K20,K22) -> 5818711.25
C26: Deductions
C28: Proceeds of sale (less outlays and expenses not otherwise deductible)
C29: from the disposition of all ECP during Test Year
C31: Other Adjustments | G31: 0
F33: Subtotal | G33: =SUM(G31,G28) -> 0 | I33: x 3/4 = | K33: =G33*3/4 -> 0
C36: Cumulative Eligible Capital Balance | K36: =K24-K33 -> 5818711.25
C38: Current Year Deduction | I38: =K36 -> 5818711.25 | J38: x 7% = | K38: =I38*0.07 -> 407309.7875
C40: Cumulative Eligible Capital - Closing Balance | K40: =K36-K38 -> 5411401.463

Sheet E. Sch 13 Tax Reserves Hist
C8: Schedule 13 Tax Reserves - Historical
C10: Continuity of Reserves
C13: Description | D13: Historical Balance as per tax returns | E13: Non-Distribution Eliminations | F13: Utility Only
C15: Capital Gains Reserves ss.40(1) | F15: =D15-E15 -> 0
C16: Tax Reserves Not Deducted for accounting purposes
C17: Reserve for doubtful accounts ss. 20(1)(l) | F17: =D17-E17 -> 0
C18: Reserve for goods and services not delivered ss. 20(1)(m) | F18: 0
C19: Reserve for unpaid amounts ss. 20(1)(n) | F19: 0
C20: Debt & Share Issue Expenses ss. 20(1)(e) | F20: 0
C21: Other tax reserves | F21: 0
C22: Employee future benefits | F22: 0
F23: 0
F24: 0
F25: 0
F26: 0
C27: Total | D27: =SUM(D17:D26) -> 0 | E27: =SUM(E17:E26) -> 0 | F27: =SUM(F17:F26) -> 0
C29: Financial Statement Reserves (not deductible for Tax Purposes)
C30: General Reserve for Inventory Obsolescence (non-specific) | F30: =D30-E30 -> 0
C31: General reserve for bad debts | F31: 0
C32: Accrued Employee Future Benefits: | F32: 0
C33: - Medical and Life Insurance | D33: 17362424 | F33: 17362424
C34: -Short & Long-term Disability | F34: 0
C35: -Accmulated Sick Leave | F35: 0
C36: - Termination Cost | F36: 0
C37: - Other Post-Employment Benefits | F37: 0
C38: Provision for Environmental Costs | F38: 0
C39: Restructuring Costs | F39: 0
C40: Accrued Contingent Litigation Costs | F40: 0
C41: Accrued Self-Insurance Costs | F41: 0
C42: Other Contingent Liabilities | F42: 0
C43: Bonuses Accrued and Not Paid Within 180 Days of Year-End ss. 78(4) | D43: 69157 | F43: 69157
C44: Unpaid Amounts to Related Person and Not Paid Within 3 Taxation Years ss. 78(1) | F44: 0
C45: Other | F45: 0
C46: Bad debt general provision | D46: 1641878
C47: invetnory general provision | D47: 152286
F49: 0
F50: 0
C51: Total | D51: =SUM(D30:D50) -> 19225745 | E51: =SUM(E30:E50) -> 0 | F51: =SUM(F30:F50) -> 17431581

Sheet F. Sch 7-1 Loss Cfwd Hist
C9: Schedule 7-1 Loss Carry Forward - Historic
C11: Corporation Loss Continuity and Application
C13: Non-Capital Loss Carry Forward Deduction | F13: Total | G13: Non-Distribution Portion | H13: Utility Balance
C14: Actual Historic | H14: =F14-G14 -> 0
C16: Net Capital Loss Carry Forward Deduction | F16: Total | G16: Non-Distribution Portion | H16: Utility Balance
C17: Actual Historic | H17: =F17-G17 -> 0

Sheet G. Adj. Taxable Income Historic
C8: Adjusted Taxable Income - Historic Year
D11: T2S1 line # | E11: Total for Legal Entity | F11: Non-Distribution Eliminations | G11: Historic Wires Only
C12: Income before PILs/Taxes | D12: A | E12: 13947478 | G12: =+E12-F12 -> 13947478
C13: Additions:
C14: Interest and penalties on taxes | D14: 103 | G14: =+E14-F14 -> 0
C15: Amortization of tangible assets | D15: 104 | E15: 37252358 | G15: 37252358
C16: Amortization of intangible assets | D16: 106 | E16: 3301540 | G16: 3301540
C17: Recapture of capital cost allowance from Schedule 8 | D17: 107 | G17: 0
C18: Gain on sale of eligible capital property from Schedule 10 | D18: 108 | G18: 0
C19: Income or loss for tax purposes- joint ventures or partnerships | D19: 109 | G19: 0
C20: Loss in equity of subsidiaries and affiliates | D20: 110 | G20: 0
C21: Loss on disposal of assets | D21: 111 | G21: 0
C22: Charitable donations | D22: 112 | E22: 419695 | G22: 419695
C23: Taxable Capital Gains | D23: 113 | G23: 0
C24: Political Donations | D24: 114 | G24: 0
C25: Deferred and prepaid expenses | D25: 116 | G25: 0
C26: Scientific research expenditures deducted on financial statements | D26: 118 | E26: 1132172 | G26: 1132172
C27: Capitalized interest | D27: 119 | G27: 0
C28: Non-deductible club dues and fees | D28: 120 | E28: 46294 | G28: 46294
C29: Non-deductible meals and entertainment expense | D29: 121 | E29: 125519 | G29: 125519
C30: Non-deductible automobile expenses | D30: 122 | E30: 10637 | G30: 10637
C31: Non-deductible life insurance premiums | D31: 123 | G31: 0
C32: Non-deductible company pension plans | D32: 124 | G32: 0
C33: Tax reserves deducted in prior year | D33: 125 | G33: 0
C34: Reserves from financial statements- balance at end of year | D34: 126 | E34: 19225745 | G34: 19225745
C35: Soft costs on construction and renovation of buildings | D35: 127 | G35: 0
C36: Book loss on joint ventures or partnerships | D36: 205 | G36: 0
C37: Capital items expensed | D37: 206 | G37: 0
C38: Debt issue expense | D38: 208 | E38: 41093 | G38: 41093
C39: Development expenses claimed in current year | D39: 212 | G39: 0
C40: Financing fees deducted in books | D40: 216 | G40: 0
C41: Gain on settlement of debt | D41: 220 | G41: 0
C42: Non-deductible advertising | D42: 226 | G42: 0
C43: Non-deductible interest | D43: 227 | G43: 0
C44: Non-deductible legal and accounting fees | D44: 228 | G44: 0
C45: Recapture of SR&ED expenditures | D45: 231 | G45: 0
C46: Share issue expense | D46: 235 | G46: 0
C47: Write down of capital property | D47: 236 | G47: 0
C48: Amounts received in respect of qualifying environment trust per paragraphs 12(1)(z.1) and 12(1)(z.2) | D48: 237 | G48: 0
C49: Other Additions
C50: Interest Expensed on Capital Leases | D50: 290 | G50: 0
C51: Realized Income from Deferred Credit Accounts | D51: 291 | G51: 0
C52: Pensions | D52: 292 | G52: 0
C53: Non-deductible penalties | D53: 293 | G53: 0
C54: Retail settlement variances charged to income | D54: 294 | E54: 13937654 | G54: 13937654
C55: Income tax provision | D55: 295 | E55: 804143 | G55: =+E55-F55 -> 804143
C56: ARO Accretion expense | G56: 0
C57: Capital Contributions Received (ITA 12(1)(x)) | G57: 0
C58: Lease Inducements Received (ITA 12(1)(x)) | G58: 0
C59: Deferred Revenue (ITA 12(1)(a)) | G59: 0
C60: Prior Year Investment Tax Credits received | E60: 5398 | G60: 5398
C61: Derecognition of assets expense | E61: 2078248 | G61: 2078248
C62: Ontario Specific Tax Credits - Co-op | E62: 201000 | G62: 201000
C63: Ontario Specific Tax Credits - Apprenticeship | E63: 295014 | G63: 295014
C64: imputed interest on lease capitalized for accounting | E64: 1134547 | G64: 1134547
G65: 0
G66: 0
G67: 0
G68: 0
G69: 0
G70: 0
C71: Total Additions | E71: =SUM(E13:E70) -> 80011057 | F71: =SUM(F13:F70) -> 0 | G71: =SUM(G13:G70) -> 80011057
C73: Deductions:
C74: Gain on disposal of assets per financial statements | D74: 401 | E74: 46182 | G74: =+E74-F74 -> 46182
C75: Dividends not taxable under section 83 | D75: 402 | G75: 0
C76: Capital cost allowance from Schedule 8 | D76: 403 | E76: 61263323 | G76: 61263323
C77: Terminal loss from Schedule 8 | D77: 404 | G77: 0
C78: Cumulative eligible capital deduction from Schedule 10 | D78: 405 | E78: 407310 | G78: 407310
C79: Allowable business investment loss | D79: 406 | G79: 0
C80: Deferred and prepaid expenses | D80: 409 | G80: 0
C81: Scientific research expenses claimed in year | D81: 411 | E81: 1874370 | G81: 1874370
C82: Tax reserves claimed in current year | D82: 413 | G82: 0
C83: Reserves from financial statements - balance at beginning of year | D83: 414 | E83: =19317373+1344093+127886 -> 20789352 | G83: 20789352
C84: Contributions to deferred income plans | D84: 416 | G84: 0
C85: Book income of joint venture or partnership | D85: 305 | E85: -462672 | G85: -462672
C86: Equity in income from subsidiary or affiliates | D86: 306 | G86: 0
C87: Other deductions: (Please explain in detail the nature of the item)
C89: Interest capitalized for accounting deducted for tax | D89: 390 | E89: 1450713 | G89: 1450713
C90: Capital Lease Payments | D90: 391 | E90: 1429911 | G90: 1429911
C91: Non-taxable imputed interest income on deferral and variance accounts | D91: 392 | G91: 0
D92: 393 | G92: 0
D93: 394 | G93: 0
C94: ARO Payments - Deductible for Tax when Paid | G94: 0
C95: ITA 13(7.4) Election - Capital Contributions Received | G95: 0
C96: ITA 13(7.4) Election - Apply Lease Inducement to cost of Leaseholds | G96: 0
C97: Deferred Revenue - ITA 20(1)(m) reserve | G97: 0
C98: Principal portion of lease payments | G98: 0
C99: Lease Inducement Book Amortization credit to income | G99: 0
C100: Financing fees for tax ITA 20(1)(e) and (e.1) | E100: 563628 | G100: 563628
C101: Deduction of amortization of deferred revenue | E101: 2453587 | G101: 2453587
G102: 0
G103: 0
G104: 0
G105: 0
G106: 0
G107: 0
C109: Total Deductions | E109: =SUM(E74:E108) -> 89815704 | F109: =SUM(F74:F108) -> 0 | G109: =SUM(G74:G108) -> 89815704
C111: Net Income for Tax Purposes | E111: =+E12+E71-E109 -> 4142831 | F111: =+F12+F71-F109 -> 0 | G111: =+G12+G71-G109 -> 4142831
C113: Charitable donations from Schedule 2 | D113: 311 | E113: 186000 | G113: =+E113-F113 -> 186000
C114: Taxable dividends deductible under section 112 or 113, from Schedule 3 (item 82) | D114: 320 | G114: =+E114-F114 -> 0
C115: Non-capital losses of preceding taxation years from Schedule 4 | D115: 331 | G115: =+E115-F115 -> 0
C116: Net-capital losses of preceding taxation years from Schedule 4 (Please include explanation and calculation in Manager's summary) | D116: 332 | G116: =+E116-F116 -> 0
C117: Limited partnership losses of preceding taxation years from Schedule 4 | D117: 335 | G117: =+E117-F117 -> 0
C119: TAXABLE INCOME | E119: =+E111-SUM(E113:E117) -> 3956831 | F119: =+F111-SUM(F113:F117) -> 0 | G119: =+G111-SUM(G113:G117) -> 3956831

Sheet H. PILs,Tax Provision Historic
C7: PILs Tax Provision - Historic Year
C8: Note: Input the actual information from the tax returns for the historic year. | I8: Wires Only
C10: Regulatory Taxable Income | I10: ='G. Adj. Taxable Income Historic'!G119 -> 3956831 | J10: A
C12: Ontario Income Taxes
C13: Income tax payable | D13: Ontario Income Tax | E13: 0.115 | F13: B | G13: =+I10*E13 -> 455035.565 | H13: C = A * B
C15: Small business credit | D15: Ontario Small Business Threshold | E15: =IF(I10>'B. Tax Rates & Exemptions'!H27,'B. Tax Rates & Exemptions'!H27*4/12,0) -> 166666.6667 | F15: D
D16: Rate reduction (negative) | E16: -0.07 | F16: E | G16: =+E15*E16*4/12 -> -3888.888889 | H16: F = D * E
C20: Ontario Income tax | I20: =SUM(G13:G19) -> 451146.6761 | J20: J = C + F
C23: Combined Tax Rate and PILs | D23: Effective Ontario Tax Rate | G23: =IF(I10>0,I20/I10,0) -> 0.1140171708 | H23: K = J / A
D24: Federal tax rate | G24: 0.15 | H24: L
D25: Combined tax rate | I25: =SUM(G23:G24) -> 0.2640171708 | J25: M = K + L
C28: Total Income Taxes | I28: =I10*I25 -> 1044671.326 | J28: N = A * M
C30: Investment Tax Credits | I30: 605593 | J30: O
C31: Miscellaneous Tax Credits | I31: =201000+295014 -> 496014 | J31: P
C32: Total Tax Credits | I32: =SUM(I30:I31) -> 1101607 | J32: Q = O + P
C34: Corporate PILs/Income Tax Provision for Historic Year | I34: =+I28-I32 -> -56935.67389 | J34: R = N - Q

Sheet I. Schedule 8 CCA Bridge Year
C7: Schedule 8 CCA - Bridge Year
C9: Class | D9: Class Description | E9: UCC Regulated Historic Year | F9: Additions | G9: Disposals (Negative) | H9: UCC Before 1/2 Yr Adjustment | I9: 1/2 Year Rule {1/2 Additions Less Disposals} | J9: Reduced UCC | K9: Rate % | L9: Bridge Year CCA | M9: UCC End of Bridge Year
C10: =IF(ISBLANK('C. Sch 8 Hist'!C12), "", 'C. Sch 8 Hist'!C12) -> 1 | D10: =IF(ISBLANK('C. Sch 8 Hist'!D12), "", 'C. Sch 8 Hist'!D12) -> Distribution System - post 1987 | E10: =IF(ISBLANK('C. Sch 8 Hist'!E12), "", 'C. Sch 8 Hist'!G12) -> 380866553 | F10: 3972000 | H10: =MAX((SUM(E10:G10)),0) -> 384838553 | I10: =IF((F10+G10)<=0, 0,(F10+G10)*0.5) -> 1986000 | J10: =+H10-I10 -> 382852553 | K10: 0.04 | L10: =IF(+J10<0,+J10,+J10*K10) -> 15314102.12 | M10: =MAX(0,+H10-L10) -> 369524450.9
C11: =IF(ISBLANK('C. Sch 8 Hist'!C13), "", 'C. Sch 8 Hist'!C13) -> 1 Enhanced | D11: =IF(ISBLANK('C. Sch 8 Hist'!D13), "", 'C. Sch 8 Hist'!D13) -> Non-residential Buildings Reg. 1100(1)(a.1) election | E11: =IF(ISBLANK('C. Sch 8 Hist'!E13), "", 'C. Sch 8 Hist'!G13) ->  | H11: =MAX((SUM(E11:G11)),0) -> 0 | I11: =IF((F11+G11)<=0, 0,(F11+G11)*0.5) -> 0 | J11: =+H11-I11 -> 0 | K11: 0.06 | L11: 0 | M11: 0
C12: =IF(ISBLANK('C. Sch 8 Hist'!C14), "", 'C. Sch 8 Hist'!C14) -> 2 | D12: =IF(ISBLANK('C. Sch 8 Hist'!D14), "", 'C. Sch 8 Hist'!D14) -> Distribution System - pre 1988 | E12: =IF(ISBLANK('C. Sch 8 Hist'!E14), "", 'C. Sch 8 Hist'!G14) -> 47884706 | H12: 47884706 | I12: 0 | J12: 47884706 | K12: 0.06 | L12: 2873082.36 | M12: 45011623.64
C13: =IF(ISBLANK('C. Sch 8 Hist'!C15), "", 'C. Sch 8 Hist'!C15) -> 8 | D13: =IF(ISBLANK('C. Sch 8 Hist'!D15), "", 'C. Sch 8 Hist'!D15) -> General Office/Stores Equip | E13: =IF(ISBLANK('C. Sch 8 Hist'!E15), "", 'C. Sch 8 Hist'!G15) -> 37366014 | F13: 1554000 | H13: 38920014 | I13: 777000 | J13: 38143014 | K13: 0.2 | L13: 7628602.8 | M13: 31291411.2
C14: =IF(ISBLANK('C. Sch 8 Hist'!C16), "", 'C. Sch 8 Hist'!C16) -> 10 | D14: =IF(ISBLANK('C. Sch 8 Hist'!D16), "", 'C. Sch 8 Hist'!D16) -> Computer Hardware/ Vehicles | E14: =IF(ISBLANK('C. Sch 8 Hist'!E16), "", 'C. Sch 8 Hist'!G16) -> 4999488 | F14: 2263000 | H14: 7262488 | I14: 1131500 | J14: 6130988 | K14: 0.3 | L14: 1839296.4 | M14: 5423191.6
C15: =IF(ISBLANK('C. Sch 8 Hist'!C17), "", 'C. Sch 8 Hist'!C17) -> 10.1 | D15: =IF(ISBLANK('C. Sch 8 Hist'!D17), "", 'C. Sch 8 Hist'!D17) -> Certain Automobiles | E15: =IF(ISBLANK('C. Sch 8 Hist'!E17), "", 'C. Sch 8 Hist'!G17) ->  | H15: 0 | I15: 0 | J15: 0 | K15: 0.3 | L15: 0 | M15: 0
C16: =IF(ISBLANK('C. Sch 8 Hist'!C18), "", 'C. Sch 8 Hist'!C18) -> 12 | D16: =IF(ISBLANK('C. Sch 8 Hist'!D18), "", 'C. Sch 8 Hist'!D18) -> Computer Software | E16: =IF(ISBLANK('C. Sch 8 Hist'!E18), "", 'C. Sch 8 Hist'!G18) -> 697008 | F16: 50245800 | H16: 50942808 | I16: 25122900 | J16: 25819908 | K16: 1 | L16: =IF(+J16<0,+J16,+J16*K16) -> 25819908 | M16: =MAX(0,+H16-L16) -> 25122900
C17: =IF(ISBLANK('C. Sch 8 Hist'!C19), "", 'C. Sch 8 Hist'!C19) -> 13 1 | D17: =IF(ISBLANK('C. Sch 8 Hist'!D19), "", 'C. Sch 8 Hist'!D19) -> Lease # 1 | E17: =IF(ISBLANK('C. Sch 8 Hist'!E19), "", 'C. Sch 8 Hist'!G19) -> 166462 | H17: 166462 | I17: 0 | J17: 166462 | L17: 9727 | M17: 156735
C18: =IF(ISBLANK('C. Sch 8 Hist'!C20), "", 'C. Sch 8 Hist'!C20) -> 13 2 | D18: =IF(ISBLANK('C. Sch 8 Hist'!D20), "", 'C. Sch 8 Hist'!D20) -> Lease #2 | E18: =IF(ISBLANK('C. Sch 8 Hist'!E20), "", 'C. Sch 8 Hist'!G20) -> 3592709 | H18: 3592709 | I18: 0 | J18: 3592709 | L18: 256622 | M18: 3336087
C19: =IF(ISBLANK('C. Sch 8 Hist'!C21), "", 'C. Sch 8 Hist'!C21) -> 13 3 | D19: =IF(ISBLANK('C. Sch 8 Hist'!D21), "", 'C. Sch 8 Hist'!D21) -> Lease # 3 | E19: =IF(ISBLANK('C. Sch 8 Hist'!E21), "", 'C. Sch 8 Hist'!G21) -> 486637 | H19: 486637 | I19: 0 | J19: 486637 | L19: 31395 | M19: 455242
C20: =IF(ISBLANK('C. Sch 8 Hist'!C22), "", 'C. Sch 8 Hist'!C22) -> 13 4 | D20: =IF(ISBLANK('C. Sch 8 Hist'!D22), "", 'C. Sch 8 Hist'!D22) -> Lease # 4 | E20: =IF(ISBLANK('C. Sch 8 Hist'!E22), "", 'C. Sch 8 Hist'!G22) -> 940498 | H20: 940498 | I20: 0 | J20: 940498 | L20: 36882 | M20: 903616
C21: =IF(ISBLANK('C. Sch 8 Hist'!C23), "", 'C. Sch 8 Hist'!C23) -> 14 | D21: =IF(ISBLANK('C. Sch 8 Hist'!D23), "", 'C. Sch 8 Hist'!D23) -> Franchise | E21: =IF(ISBLANK('C. Sch 8 Hist'!E23), "", 'C. Sch 8 Hist'!G23) ->  | H21: 0 | I21: 0 | J21: 0 | L21: 0 | M21: 0
C22: =IF(ISBLANK('C. Sch 8 Hist'!C24), "", 'C. Sch 8 Hist'!C24) -> 17 | D22: =IF(ISBLANK('C. Sch 8 Hist'!D24), "", 'C. Sch 8 Hist'!D24) -> New Electrical Generating Equipment Acq'd after Feb 27/00 Other Than Bldgs | E22: =IF(ISBLANK('C. Sch 8 Hist'!E24), "", 'C. Sch 8 Hist'!G24) -> 365506 | H22: 365506 | I22: 0 | J22: 365506 | K22: 0.08 | L22: =IF(+J22<0,+J22,+J22*K22) -> 29240.48 | M22: 336265.52
C23: =IF(ISBLANK('C. Sch 8 Hist'!C25), "", 'C. Sch 8 Hist'!C25) -> 42 | D23: =IF(ISBLANK('C. Sch 8 Hist'!D25), "", 'C. Sch 8 Hist'!D25) -> Fibre Optic Cable | E23: =IF(ISBLANK('C. Sch 8 Hist'!E25), "", 'C. Sch 8 Hist'!G25) ->  | H23: 0 | I23: 0 | J23: 0 | K23: 0.12 | L23: =IF(+J23<0,+J23,+J23*K23) -> 0 | M23: 0
C24: =IF(ISBLANK('C. Sch 8 Hist'!C26), "", 'C. Sch 8 Hist'!C26) -> 43.1 | D24: =IF(ISBLANK('C. Sch 8 Hist'!D26), "", 'C. Sch 8 Hist'!D26) -> Certain Energy-Efficient Electrical Generating Equipment | E24: =IF(ISBLANK('C. Sch 8 Hist'!E26), "", 'C. Sch 8 Hist'!G26) ->  | H24: 0 | I24: 0 | J24: 0 | K24: 0.3 | L24: 0 | M24: 0
C25: =IF(ISBLANK('C. Sch 8 Hist'!C27), "", 'C. Sch 8 Hist'!C27) -> 43.2 | D25: =IF(ISBLANK('C. Sch 8 Hist'!D27), "", 'C. Sch 8 Hist'!D27) -> Certain Clean Energy Generation Equipment | E25: =IF(ISBLANK('C. Sch 8 Hist'!E27), "", 'C. Sch 8 Hist'!G27) ->  | H25: 0 | I25: 0 | J25: 0 | K25: 0.5 | L25: 0 | M25: 0
C26: =IF(ISBLANK('C. Sch 8 Hist'!C28), "", 'C. Sch 8 Hist'!C28) -> 45 | D26: =IF(ISBLANK('C. Sch 8 Hist'!D28), "", 'C. Sch 8 Hist'!D28) -> Computers & Systems Software acq'd post Mar 22/04 | E26: =IF(ISBLANK('C. Sch 8 Hist'!E28), "", 'C. Sch 8 Hist'!G28) -> 36306 | H26: 36306 | I26: 0 | J26: 36306 | K26: 0.45 | L26: 16337.7 | M26: 19968.3
C27: =IF(ISBLANK('C. Sch 8 Hist'!C29), "", 'C. Sch 8 Hist'!C29) -> 46 | D27: =IF(ISBLANK('C. Sch 8 Hist'!D29), "", 'C. Sch 8 Hist'!D29) -> Data Network Infrastructure Equipment (acq'd post Mar 22/04) | E27: =IF(ISBLANK('C. Sch 8 Hist'!E29), "", 'C. Sch 8 Hist'!G29) ->  | H27: 0 | I27: 0 | J27: 0 | K27: 0.3 | L27: 0 | M27: 0
C28: =IF(ISBLANK('C. Sch 8 Hist'!C30), "", 'C. Sch 8 Hist'!C30) -> 47 | D28: =IF(ISBLANK('C. Sch 8 Hist'!D30), "", 'C. Sch 8 Hist'!D30) -> Distribution System - post February 2005 | E28: =IF(ISBLANK('C. Sch 8 Hist'!E30), "", 'C. Sch 8 Hist'!G30) -> 325433485 | F28: 80283500 | H28: 405716985 | I28: 40141750 | J28: 365575235 | K28: 0.08 | L28: 29246018.8 | M28: 376470966.2
C29: =IF(ISBLANK('C. Sch 8 Hist'!C31), "", 'C. Sch 8 Hist'!C31) -> 50 | D29: =IF(ISBLANK('C. Sch 8 Hist'!D31), "", 'C. Sch 8 Hist'!D31) -> Data Network Infrastructure Equipment - post Mar 2007 | E29: =IF(ISBLANK('C. Sch 8 Hist'!E31), "", 'C. Sch 8 Hist'!G31) -> 2575472 | F29: 2036000 | H29: 4611472 | I29: 1018000 | J29: 3593472 | K29: 0.55 | L29: 1976409.6 | M29: 2635062.4
C30: =IF(ISBLANK('C. Sch 8 Hist'!C32), "", 'C. Sch 8 Hist'!C32) -> 52 | D30: =IF(ISBLANK('C. Sch 8 Hist'!D32), "", 'C. Sch 8 Hist'!D32) -> Computer Hardware and system software | E30: =IF(ISBLANK('C. Sch 8 Hist'!E32), "", 'C. Sch 8 Hist'!G32) ->  | H30: 0 | I30: 0 | J30: 0 | K30: 1 | L30: 0 | M30: 0
C31: =IF(ISBLANK('C. Sch 8 Hist'!C33), "", 'C. Sch 8 Hist'!C33) -> 95 | D31: =IF(ISBLANK('C. Sch 8 Hist'!D33), "", 'C. Sch 8 Hist'!D33) -> CWIP | E31: =IF(ISBLANK('C. Sch 8 Hist'!E33), "", 'C. Sch 8 Hist'!G33) -> 68314217 | H31: 68314217 | I31: 0 | J31: 68314217 | L31: 0 | M31: 68314217
C32: =IF(ISBLANK('C. Sch 8 Hist'!C34), "", 'C. Sch 8 Hist'!C34) ->  | D32: Land | E32: =IF(ISBLANK('C. Sch 8 Hist'!E34), "", 'C. Sch 8 Hist'!G34) ->  | F32: 1125000 | H32: 1125000 | I32: 562500 | J32: 562500 | L32: 0 | M32: 1125000
C33: =IF(ISBLANK('C. Sch 8 Hist'!C35), "", 'C. Sch 8 Hist'!C35) ->  | D33: =IF(ISBLANK('C. Sch 8 Hist'!D35), "", 'C. Sch 8 Hist'!D35) ->  | E33: =IF(ISBLANK('C. Sch 8 Hist'!E35), "", 'C. Sch 8 Hist'!G35) ->  | H33: 0 | I33: 0 | J33: 0 | L33: 0 | M33: 0
C34: =IF(ISBLANK('C. Sch 8 Hist'!C36), "", 'C. Sch 8 Hist'!C36) ->  | D34: =IF(ISBLANK('C. Sch 8 Hist'!D36), "", 'C. Sch 8 Hist'!D36) ->  | H34: =MAX((SUM(E34:G34)),0) -> 0 | I34: 0 | J34: =+H34-I34 -> 0 | L34: 0 | M34: 0
C35: =IF(ISBLANK('C. Sch 8 Hist'!C37), "", 'C. Sch 8 Hist'!C37) ->  | D35: =IF(ISBLANK('C. Sch 8 Hist'!D37), "", 'C. Sch 8 Hist'!D37) ->  | E35: =IF(ISBLANK('C. Sch 8 Hist'!E37), "", 'C. Sch 8 Hist'!G37) ->  | H35: =MAX((SUM(E35:G35)),0) -> 0 | I35: 0 | J35: =+H35-I35 -> 0 | L35: 0 | M35: 0
C36: =IF(ISBLANK('C. Sch 8 Hist'!C38), "", 'C. Sch 8 Hist'!C38) ->  | D36: =IF(ISBLANK('C. Sch 8 Hist'!D38), "", 'C. Sch 8 Hist'!D38) ->  | E36: =IF(ISBLANK('C. Sch 8 Hist'!E38), "", 'C. Sch 8 Hist'!G38) ->  | H36: =MAX((SUM(E36:G36)),0) -> 0 | I36: 0 | J36: =+H36-I36 -> 0 | L36: 0 | M36: 0
C37: =IF(ISBLANK('C. Sch 8 Hist'!C39), "", 'C. Sch 8 Hist'!C39) ->  | D37: =IF(ISBLANK('C. Sch 8 Hist'!D39), "", 'C. Sch 8 Hist'!D39) ->  | E37: =IF(ISBLANK('C. Sch 8 Hist'!E39), "", 'C. Sch 8 Hist'!G39) ->  | H37: 0 | I37: 0 | J37: 0 | L37: 0 | M37: 0
C38: =IF(ISBLANK('C. Sch 8 Hist'!C40), "", 'C. Sch 8 Hist'!C40) ->  | D38: =IF(ISBLANK('C. Sch 8 Hist'!D40), "", 'C. Sch 8 Hist'!D40) ->  | E38: =IF(ISBLANK('C. Sch 8 Hist'!E40), "", 'C. Sch 8 Hist'!G40) ->  | H38: 0 | I38: 0 | J38: 0 | L38: 0 | M38: 0
C39: =IF(ISBLANK('C. Sch 8 Hist'!C41), "", 'C. Sch 8 Hist'!C41) ->  | D39: =IF(ISBLANK('C. Sch 8 Hist'!D41), "", 'C. Sch 8 Hist'!D41) ->  | E39: =IF(ISBLANK('C. Sch 8 Hist'!E41), "", 'C. Sch 8 Hist'!G41) ->  | H39: 0 | I39: 0 | J39: 0 | L39: 0 | M39: 0
C40: =IF(ISBLANK('C. Sch 8 Hist'!C42), "", 'C. Sch 8 Hist'!C42) ->  | D40: =IF(ISBLANK('C. Sch 8 Hist'!D42), "", 'C. Sch 8 Hist'!D42) ->  | E40: =IF(ISBLANK('C. Sch 8 Hist'!E42), "", 'C. Sch 8 Hist'!G42) ->  | H40: 0 | I40: 0 | J40: 0 | L40: 0 | M40: 0
C41: =IF(ISBLANK('C. Sch 8 Hist'!C43), "", 'C. Sch 8 Hist'!C43) ->  | D41: =IF(ISBLANK('C. Sch 8 Hist'!D43), "", 'C. Sch 8 Hist'!D43) ->  | E41: =IF(ISBLANK('C. Sch 8 Hist'!E43), "", 'C. Sch 8 Hist'!G43) ->  | H41: 0 | I41: 0 | J41: 0 | L41: 0 | M41: 0
D42: TOTAL | E42: =SUM(E10:E41) -> 873725061 | F42: 141479300 | G42: 0 | H42: 1015204361 | I42: 70739650 | J42: 944464711 | L42: =SUM(L10:L41) -> 85077624.26 | M42: =SUM(M10:M41) -> 930126736.7

Sheet J. Schedule 10 CEC Bridge Year
C8: Schedule 10 CEC - Bridge Year
C10: Cumulative Eligible Capital | K10: ='D. Schedule 10 CEC Hist'!K40 -> 5411401.463
C11: Additions
C12: Cost of Eligible Capital Property Acquired during Test Year | G12: 33000
C14: Other Adjustments | G14: 0
C16: Subtotal | G16: =SUM(G12,G14) -> 33000 | I16: x 3/4 = | J16: =3/4*G16 -> 24750
C18: Non-taxable portion of a non-arm's length transferor's gain realized on the | G18: 0 | I18: x 1/2 = | J18: =IF((G18*0.5)<0, 0, G18*0.5) -> 0
C19: transfer of an ECP to the Corporation after Friday, December 20, 2002
J20: =IF((J16-J18)<0,0,J16-J18) -> 24750 | K20: =J20 -> 24750
C22: Amount transferred on amalgamation or wind-up of subsidiary | G22: 0 | K22: =G22 -> 0
F24: Subtotal | K24: =SUM(K10,K20,K22) -> 5436151.463
C26: Deductions
C28: Proceeds of sale (less outlays and expenses not otherwise deductible)
C29: from the disposition of all ECP during Test Year
C31: Other Adjustments | G31: 0
F33: Subtotal | G33: =SUM(G31,G28) -> 0 | I33: x 3/4 = | K33: =G33*3/4 -> 0
C36: Cumulative Eligible Capital Balance | K36: =K24-K33 -> 5436151.463
C38: Current Year Deduction | I38: =K36 -> 5436151.463 | J38: x 7% = | K38: =I38*0.07 -> 380530.6024
C40: Cumulative Eligible Capital - Closing Balance | K40: =K36-K38 -> 5055620.86

Sheet K. Sch 13 Tax Reserves Bridge
C8: Schedule 13 Tax Reserves - Bridge Year
C9: Continuity of Reserves
G10: Bridge Year Adjustments
C11: Description | D11: Historic Utility Only | E11: Eliminate Amounts Not Relevant for Bridge Year | F11: Adjusted Utility Balance | G11: Additions | H11: Disposals | I11: Balance for Bridge Year | J11: Change During the Year | K11: Disallowed Expenses
C13: Capital Gains Reserves ss.40(1) | D13: ='E. Sch 13 Tax Reserves Hist'!F15 -> 0 | F13: =SUM(D13:E13) -> 0 | I13: =F13+G13-H13 -> 0 | J13: =+I13-F13 -> 0
C14: Tax Reserves Not Deducted for accounting purposes
C15: Reserve for doubtful accounts ss. 20(1)(l) | D15: ='E. Sch 13 Tax Reserves Hist'!F17 -> 0 | F15: =SUM(D15:E15) -> 0 | I15: =F15+G15-H15 -> 0 | J15: =+I15-F15 -> 0
C16: Reserve for goods and services not delivered ss. 20(1)(m) | D16: ='E. Sch 13 Tax Reserves Hist'!F18 -> 0 | F16: 0 | I16: 0 | J16: 0
C17: Reserve for unpaid amounts ss. 20(1)(n) | D17: ='E. Sch 13 Tax Reserves Hist'!F19 -> 0 | F17: 0 | I17: 0 | J17: 0
C18: Debt & Share Issue Expenses ss. 20(1)(e) | D18: ='E. Sch 13 Tax Reserves Hist'!F20 -> 0 | F18: 0 | I18: 0 | J18: 0
C19: Other tax reserves | D19: ='E. Sch 13 Tax Reserves Hist'!F21 -> 0 | F19: 0 | I19: 0 | J19: 0
D20: ='E. Sch 13 Tax Reserves Hist'!F25 -> 0 | F20: 0 | I20: 0 | J20: 0
D21: ='E. Sch 13 Tax Reserves Hist'!F26 -> 0 | F21: 0 | I21: 0 | J21: 0
C22: Total | D22: =SUM(D15:D21) -> 0 | E22: 0 | F22: 0 | G22: 0 | H22: 0 | I22: 0 | J22: 0 | K22: 0
D23: 0
C24: Financial Statement Reserves (not deductible for Tax Purposes)
C25: General Reserve for Inventory Obsolescence (non-specific) | D25: ='E. Sch 13 Tax Reserves Hist'!F30 -> 0 | F25: =SUM(D25:E25) -> 0 | I25: =F25+G25-H25 -> 0 | J25: =+I25-F25 -> 0
C26: General reserve for bad debts | D26: ='E. Sch 13 Tax Reserves Hist'!F31 -> 0 | F26: 0 | I26: 0 | J26: 0
C27: Accrued Employee Future Benefits: | D27: ='E. Sch 13 Tax Reserves Hist'!F32 -> 0 | F27: 0 | I27: 0 | J27: 0
C28: - Medical and Life Insurance | D28: ='E. Sch 13 Tax Reserves Hist'!F33 -> 17362424 | F28: 17362424 | G28: 2423419 | I28: 19785843 | J28: 2423419
C29: -Short & Long-term Disability | D29: ='E. Sch 13 Tax Reserves Hist'!F34 -> 0 | F29: 0 | I29: 0 | J29: 0
C30: -Accmulated Sick Leave | D30: ='E. Sch 13 Tax Reserves Hist'!F35 -> 0 | F30: 0 | I30: 0 | J30: 0
C31: - Termination Cost | D31: ='E. Sch 13 Tax Reserves Hist'!F36 -> 0 | F31: 0 | I31: 0 | J31: 0
C32: - Other Post-Employment Benefits | D32: ='E. Sch 13 Tax Reserves Hist'!F37 -> 0 | F32: 0 | I32: 0 | J32: 0
C33: Provision for Environmental Costs | D33: ='E. Sch 13 Tax Reserves Hist'!F38 -> 0 | F33: 0 | I33: 0 | J33: 0
C34: Restructuring Costs | D34: ='E. Sch 13 Tax Reserves Hist'!F39 -> 0 | F34: 0 | I34: 0 | J34: 0
C35: Accrued Contingent Litigation Costs | D35: ='E. Sch 13 Tax Reserves Hist'!F40 -> 0 | F35: 0 | I35: 0 | J35: 0
C36: Accrued Self-Insurance Costs | D36: ='E. Sch 13 Tax Reserves Hist'!F41 -> 0 | F36: 0 | I36: 0 | J36: 0
C37: Other Contingent Liabilities | D37: ='E. Sch 13 Tax Reserves Hist'!F42 -> 0 | F37: 0 | I37: 0 | J37: 0
C38: Bonuses Accrued and Not Paid Within 180 Days of Year-End ss. 78(4) | D38: ='E. Sch 13 Tax Reserves Hist'!F43 -> 69157 | F38: 69157 | I38: 69157 | J38: 0
C39: Unpaid Amounts to Related Person and Not Paid Within 3 Taxation Years ss. 78(1) | D39: ='E. Sch 13 Tax Reserves Hist'!F44 -> 0 | F39: 0 | I39: 0 | J39: 0
C40: Other | D40: ='E. Sch 13 Tax Reserves Hist'!F45 -> 0 | F40: 0 | I40: 0 | J40: 0
D41: ='E. Sch 13 Tax Reserves Hist'!F49 -> 0 | F41: =SUM(D41:E41) -> 0 | I41: 0 | J41: =+I41-F41 -> 0
D42: ='E. Sch 13 Tax Reserves Hist'!F50 -> 0 | F42: =SUM(D42:E42) -> 0 | I42: 0 | J42: =+I42-F42 -> 0
C43: Total | D43: =SUM(D25:D42) -> 17431581 | E43: =SUM(E25:E42) -> 0 | F43: 17431581 | G43: 2423419 | H43: 0 | I43: 19855000 | J43: 2423419 | K43: 0
D44: 0

Sheet L. Sch 7-1 Loss Cfwd Bridge
C7: Corporation Loss Continuity and Application
C9: Schedule 7-1 Loss Carry Forward - Bridge Year
C11: Non-Capital Loss Carry Forward Deduction | F11: Total
C12: Actual Historic | F12: ='F. Sch 7-1 Loss Cfwd Hist'!H14 -> 0
C13: Application of Loss Carry Forward to reduce taxable income in Bridge Year
C14: Other Adjustments Add (+) Deduct (-)
C15: Balance available for use in Test Year | F15: =F12-F13+F14 -> 0
C16: Amount to be used in Bridge Year
C17: Balance available for use post Bridge Year | F17: =F15-F16 -> 0
C19: Net Capital Loss Carry Forward Deduction | F19: Total
C20: Actual Historic | F20: ='F. Sch 7-1 Loss Cfwd Hist'!H17 -> 0
C21: Application of Loss Carry Forward to reduce taxable income in Bridge Year
C22: Other Adjustments Add (+) Deduct (-)
C23: Balance available for use in Test Year | F23: =F20-F21+F22 -> 0
C24: Amount to be used in Bridge Year
C25: Balance available for use post Bridge Year | F25: =F23-F24 -> 0

Sheet M. Adj. Taxable Income Bridge
B5: Adjusted Taxable Income - Bridge Year
D7: T2S1 line # | E7: Total for Regulated Utility
C8: Income before PILs/Taxes | D8: A | E8: 34976530
C10: Additions:
C11: Interest and penalties on taxes | D11: 103
C12: Amortization of tangible assets | D12: 104 | E12: 42664000
C13: Amortization of intangible assets | D13: 106
C14: Recapture of capital cost allowance from Schedule 8 | D14: 107
C15: Gain on sale of eligible capital property from Schedule 10 | D15: 108
C16: Income or loss for tax purposes- joint ventures or partnerships | D16: 109
C17: Loss in equity of subsidiaries and affiliates | D17: 110
C18: Loss on disposal of assets | D18: 111
C19: Charitable donations | D19: 112 | E19: 300000
C20: Taxable Capital Gains | D20: 113
C21: Political Donations | D21: 114
C22: Deferred and prepaid expenses | D22: 116
C23: Scientific research expenditures deducted on financial statements | D23: 118
C24: Capitalized interest | D24: 119
C25: Non-deductible club dues and fees | D25: 120 | E25: 50700
C26: Non-deductible meals and entertainment expense | D26: 121 | E26: 119600
C27: Non-deductible automobile expenses | D27: 122 | E27: 10800
C28: Non-deductible life insurance premiums | D28: 123
C29: Non-deductible company pension plans | D29: 124
C30: Tax reserves deducted in prior year | D30: 125 | E30: ='K. Sch 13 Tax Reserves Bridge'!F22 -> 0
C31: Reserves from financial statements- balance at end of year | D31: 126 | E31: ='K. Sch 13 Tax Reserves Bridge'!I43 -> 19855000
C32: Soft costs on construction and renovation of buildings | D32: 127
C33: Book loss on joint ventures or partnerships | D33: 205
C34: Capital items expensed | D34: 206
C35: Debt issue expense | D35: 208 | E35: 41100
C36: Development expenses claimed in current year | D36: 212
C37: Financing fees deducted in books | D37: 216
C38: Gain on settlement of debt | D38: 220
C39: Non-deductible advertising | D39: 226
C40: Non-deductible interest | D40: 227
C41: Non-deductible legal and accounting fees | D41: 228
C42: Recapture of SR&ED expenditures | D42: 231
C43: Share issue expense | D43: 235
C44: Write down of capital property | D44: 236
C45: Amounts received in respect of qualifying environment trust per paragraphs 12(1)(z.1) and 12(1)(z.2) | D45: 237
C46: Other Additions
C47: Interest Expensed on Capital Leases | D47: 290
C48: Realized Income from Deferred Credit Accounts | D48: 291
C49: Pensions | D49: 292
C50: Non-deductible penalties | D50: 293
D51: 294
D52: 295
C53: ARO Accretion expense
C54: Capital Contributions Received (ITA 12(1)(x))
C55: Lease Inducements Received (ITA 12(1)(x))
C56: Deferred Revenue (ITA 12(1)(a))
C57: Prior Year Investment Tax Credits received
C58: Ontario Tax Credits - Co-op | E58: 205000
C59: Ontario Tax Credits - Apprentice | E59: 300900
C60: Interest expense - leased building | E60: 1114500
C68: Total Additions | E68: =SUM(E10:E67) -> 64661600
C69: Deductions:
C70: Gain on disposal of assets per financial statements | D70: 401 | E70: 61000
C71: Dividends not taxable under section 83 | D71: 402
C72: Capital cost allowance from Schedule 8 | D72: 403 | E72: ='I. Schedule 8 CCA Bridge Year'!L42 -> 85077624.26
C73: Terminal loss from Schedule 8 | D73: 404
C74: Cumulative eligible capital deduction from Schedule 10 | D74: 405 | E74: ='J. Schedule 10 CEC Bridge Year'!K38 -> 380530.6024
C75: Allowable business investment loss | D75: 406
C76: Deferred and prepaid expenses | D76: 409
C77: Scientific research expenses claimed in year | D77: 411 | E77: 1407863
C78: Tax reserves claimed in current year | D78: 413 | E78: ='K. Sch 13 Tax Reserves Bridge'!I22 -> 0
C79: Reserves from financial statements - balance at beginning of year | D79: 414 | E79: ='K. Sch 13 Tax Reserves Bridge'!F43 -> 17431581
C80: Contributions to deferred income plans | D80: 416
C81: Book income of joint venture or partnership | D81: 305
C82: Equity in income from subsidiary or affiliates | D82: 306
C83: Other deductions: (Please explain in detail the nature of the item)
C85: Interest capitalized for accounting deducted for tax | D85: 390
C86: Capital Lease Payments | D86: 391 | E86: 1429900
C87: Non-taxable imputed interest income on deferral and variance accounts | D87: 392
C88: reserves - correction (fix later) | D88: 393 | E88: =19819100-17431581 -> 2387519
D89: 394
C90: ARO Payments - Deductible for Tax when Paid
C91: ITA 13(7.4) Election - Capital Contributions Received
C92: ITA 13(7.4) Election - Apply Lease Inducement to cost of Leaseholds
C93: Deferred Revenue - ITA 20(1)(m) reserve
C94: Principal portion of lease payments
C95: Lease Inducement Book Amortization credit to income
C96: Financing fees for tax ITA 20(1)(e) and (e.1) | E96: 465500
C105: Total Deductions | E105: =SUM(E70:E104) -> 108641517.9
C107: Net Income for Tax Purposes | E107: =+E8+E68-E105 -> -9003387.862
C108: Charitable donations from Schedule 2 | D108: 311 | E108: 300000
C109: Taxable dividends deductible under section 112 or 113, from Schedule 3 (item 82) | D109: 320
C110: Non-capital losses of preceding taxation years from Schedule 4 | D110: 331
C111: Net-capital losses of preceding taxation years from Schedule 4 (Please include explanation and calculation in Manager's summary) | D111: 332
C112: Limited partnership losses of preceding taxation years from Schedule 4 | D112: 335
C114: TAXABLE INCOME | E114: =+E107-SUM(E108:E112) -> -9303387.862

Sheet N. PILs,Tax Provision Bridge
B6: PILS Tax Provision - Bridge Year
I8: Wires Only
C10: Regulatory Taxable Income | I10: ='M. Adj. Taxable Income Bridge'!E114 -> -9303387.862 | J10: A
C12: Ontario Income Taxes
C13: Income tax payable | D13: Ontario Income Tax | E13: 0.115 | F13: B | G13: =IF(I10>0,I10*E13,0) -> 0 | H13: C = A * B
C15: Small business credit | D15: Ontario Small Business Threshold | E15: =IF(I10>'B. Tax Rates & Exemptions'!I27,'B. Tax Rates & Exemptions'!I27,0) -> 0 | F15: D
D16: Rate reduction | E16: =-('B. Tax Rates & Exemptions'!I21-'B. Tax Rates & Exemptions'!I31) -> -0.07 | F16: E | G16: =IF(I10>0,E15*E16,0) -> 0 | H16: F = D * E
C20: Ontario Income tax | I20: =SUM(G13:G19) -> 0 | J20: J = C + F
C23: Combined Tax Rate and PILs | D23: Effective Ontario Tax Rate | G23: 0.115 | H23: K = J / A
D24: Federal tax rate | G24: 0.15 | H24: L
D25: Combined tax rate | I25: =SUM(G23:G24) -> 0.265 | J25: M = K + L
C28: Total Income Taxes | I28: =I10*I25 -> -2465397.784 | J28: N = A * M
C30: Investment Tax Credits | I30: 605593 | J30: O
C31: Miscellaneous Tax Credits | I31: =205000+300900 -> 505900 | J31: P
C32: Total Tax Credits | I32: =SUM(I30:I31) -> 1111493 | J32: Q = O + P
C34: Corporate PILs/Income Tax Provision for Bridge Year | I34: =+I28-I32 -> -3576890.784 | J34: R = N - Q
C36: Grossed up income tax | I36: =1/(1-I25)*I34 -> -4866518.073
C38: Note:
C39: 1. This is for the derivation of Bridge year PILs income tax expense and should not be used for Test year revenue requirement calculations.

Sheet O. Schedule 8 CCA Test Year
B7: Schedule 8 CCA - Test Year 1 (2016)
C10: Class | D10: Class Description | E10: UCC Test Year 1 Opening Balance | F10: Additions | G10: Disposals (Negative) | H10: UCC Before 1/2 Yr Adjustment | I10: 1/2 Year Rule {1/2 Additions Less Disposals} | J10: Reduced UCC | K10: Rate % | L10: Test Year 1 CCA | M10: UCC End of Test Year 1
C11: =IF(ISBLANK('I. Schedule 8 CCA Bridge Year'!C10), "", 'I. Schedule 8 CCA Bridge Year'!C10) -> 1 | D11: =IF(ISBLANK('I. Schedule 8 CCA Bridge Year'!D10), "", 'I. Schedule 8 CCA Bridge Year'!D10) -> Distribution System - post 1987 | E11: =IF(ISBLANK('I. Schedule 8 CCA Bridge Year'!M10), "", 'I. Schedule 8 CCA Bridge Year'!M10) -> 369524450.9 | F11: 474000 | H11: =MAX((SUM(E11:G11)),0) -> 369998450.9 | I11: =IF((F11+G11)<=0, 0,(F11+G11)*0.5) -> 237000 | J11: =+H11-I11 -> 369761450.9 | K11: ='I. Schedule 8 CCA Bridge Year'!K10 -> 0.04 | L11: =IF(+J11<0,+J11,+J11*K11) -> 14790458.04 | M11: =MAX(0,+H11-L11) -> 355207992.8
C12: =IF(ISBLANK('I. Schedule 8 CCA Bridge Year'!C11), "", 'I. Schedule 8 CCA Bridge Year'!C11) -> 1 Enhanced | D12: =IF(ISBLANK('I. Schedule 8 CCA Bridge Year'!D11), "", 'I. Schedule 8 CCA Bridge Year'!D11) -> Non-residential Buildings Reg. 1100(1)(a.1) election | E12: =IF(ISBLANK('I. Schedule 8 CCA Bridge Year'!M11), "", 'I. Schedule 8 CCA Bridge Year'!M11) -> 0 | H12: 0 | I12: =IF((F12+G12)<=0, 0,(F12+G12)*0.5) -> 0 | J12: 0 | K12: ='I. Schedule 8 CCA Bridge Year'!K11 -> 0.06 | L12: 0 | M12: 0
C13: =IF(ISBLANK('I. Schedule 8 CCA Bridge Year'!C12), "", 'I. Schedule 8 CCA Bridge Year'!C12) -> 2 | D13: =IF(ISBLANK('I. Schedule 8 CCA Bridge Year'!D12), "", 'I. Schedule 8 CCA Bridge Year'!D12) -> Distribution System - pre 1988 | E13: =IF(ISBLANK('I. Schedule 8 CCA Bridge Year'!M12), "", 'I. Schedule 8 CCA Bridge Year'!M12) -> 45011623.64 | H13: 45011623.64 | I13: 0 | J13: 45011623.64 | K13: ='I. Schedule 8 CCA Bridge Year'!K12 -> 0.06 | L13: 2700697.418 | M13: 42310926.22
C14: =IF(ISBLANK('I. Schedule 8 CCA Bridge Year'!C13), "", 'I. Schedule 8 CCA Bridge Year'!C13) -> 8 | D14: =IF(ISBLANK('I. Schedule 8 CCA Bridge Year'!D13), "", 'I. Schedule 8 CCA Bridge Year'!D13) -> General Office/Stores Equip | E14: =IF(ISBLANK('I. Schedule 8 CCA Bridge Year'!M13), "", 'I. Schedule 8 CCA Bridge Year'!M13) -> 31291411.2 | F14: 759000 | H14: 32050411.2 | I14: 379500 | J14: 31670911.2 | K14: ='I. Schedule 8 CCA Bridge Year'!K13 -> 0.2 | L14: 6334182.24 | M14: 25716228.96
C15: =IF(ISBLANK('I. Schedule 8 CCA Bridge Year'!C14), "", 'I. Schedule 8 CCA Bridge Year'!C14) -> 10 | D15: =IF(ISBLANK('I. Schedule 8 CCA Bridge Year'!D14), "", 'I. Schedule 8 CCA Bridge Year'!D14) -> Computer Hardware/ Vehicles | E15: =IF(ISBLANK('I. Schedule 8 CCA Bridge Year'!M14), "", 'I. Schedule 8 CCA Bridge Year'!M14) -> 5423191.6 | F15: 3124000 | H15: 8547191.6 | I15: 1562000 | J15: 6985191.6 | K15: ='I. Schedule 8 CCA Bridge Year'!K14 -> 0.3 | L15: 2095557.48 | M15: 6451634.12
C16: =IF(ISBLANK('I. Schedule 8 CCA Bridge Year'!C15), "", 'I. Schedule 8 CCA Bridge Year'!C15) -> 10.1 | D16: =IF(ISBLANK('I. Schedule 8 CCA Bridge Year'!D15), "", 'I. Schedule 8 CCA Bridge Year'!D15) -> Certain Automobiles | E16: =IF(ISBLANK('I. Schedule 8 CCA Bridge Year'!M15), "", 'I. Schedule 8 CCA Bridge Year'!M15) -> 0 | H16: 0 | I16: 0 | J16: 0 | K16: ='I. Schedule 8 CCA Bridge Year'!K15 -> 0.3 | L16: 0 | M16: 0
C17: =IF(ISBLANK('I. Schedule 8 CCA Bridge Year'!C16), "", 'I. Schedule 8 CCA Bridge Year'!C16) -> 12 | D17: =IF(ISBLANK('I. Schedule 8 CCA Bridge Year'!D16), "", 'I. Schedule 8 CCA Bridge Year'!D16) -> Computer Software | E17: =IF(ISBLANK('I. Schedule 8 CCA Bridge Year'!M16), "", 'I. Schedule 8 CCA Bridge Year'!M16) -> 25122900 | F17: 12299900 | H17: 37422800 | I17: 6149950 | J17: 31272850 | K17: ='I. Schedule 8 CCA Bridge Year'!K16 -> 1 | L17: 31272850 | M17: 6149950
C18: =IF(ISBLANK('I. Schedule 8 CCA Bridge Year'!C17), "", 'I. Schedule 8 CCA Bridge Year'!C17) -> 13 1 | D18: =IF(ISBLANK('I. Schedule 8 CCA Bridge Year'!D17), "", 'I. Schedule 8 CCA Bridge Year'!D17) -> Lease # 1 | E18: =IF(ISBLANK('I. Schedule 8 CCA Bridge Year'!M17), "", 'I. Schedule 8 CCA Bridge Year'!M17) -> 156735 | H18: 156735 | I18: 0 | J18: 156735 | L18: 9727 | M18: 147008
C19: =IF(ISBLANK('I. Schedule 8 CCA Bridge Year'!C18), "", 'I. Schedule 8 CCA Bridge Year'!C18) -> 13 2 | D19: =IF(ISBLANK('I. Schedule 8 CCA Bridge Year'!D18), "", 'I. Schedule 8 CCA Bridge Year'!D18) -> Lease #2 | E19: =IF(ISBLANK('I. Schedule 8 CCA Bridge Year'!M18), "", 'I. Schedule 8 CCA Bridge Year'!M18) -> 3336087 | H19: 3336087 | I19: 0 | J19: 3336087 | L19: 256622 | M19: 3079465
C20: =IF(ISBLANK('I. Schedule 8 CCA Bridge Year'!C19), "", 'I. Schedule 8 CCA Bridge Year'!C19) -> 13 3 | D20: =IF(ISBLANK('I. Schedule 8 CCA Bridge Year'!D19), "", 'I. Schedule 8 CCA Bridge Year'!D19) -> Lease # 3 | E20: =IF(ISBLANK('I. Schedule 8 CCA Bridge Year'!M19), "", 'I. Schedule 8 CCA Bridge Year'!M19) -> 455242 | H20: 455242 | I20: 0 | J20: 455242 | L20: 31395 | M20: 423847
C21: =IF(ISBLANK('I. Schedule 8 CCA Bridge Year'!C20), "", 'I. Schedule 8 CCA Bridge Year'!C20) -> 13 4 | D21: =IF(ISBLANK('I. Schedule 8 CCA Bridge Year'!D20), "", 'I. Schedule 8 CCA Bridge Year'!D20) -> Lease # 4 | E21: =IF(ISBLANK('I. Schedule 8 CCA Bridge Year'!M20), "", 'I. Schedule 8 CCA Bridge Year'!M20) -> 903616 | H21: 903616 | I21: 0 | J21: 903616 | L21: 36882 | M21: 866734
C22: =IF(ISBLANK('I. Schedule 8 CCA Bridge Year'!C21), "", 'I. Schedule 8 CCA Bridge Year'!C21) -> 14 | D22: =IF(ISBLANK('I. Schedule 8 CCA Bridge Year'!D21), "", 'I. Schedule 8 CCA Bridge Year'!D21) -> Franchise | E22: =IF(ISBLANK('I. Schedule 8 CCA Bridge Year'!M21), "", 'I. Schedule 8 CCA Bridge Year'!M21) -> 0 | H22: 0 | I22: 0 | J22: 0 | L22: 0 | M22: 0
C23: =IF(ISBLANK('I. Schedule 8 CCA Bridge Year'!C22), "", 'I. Schedule 8 CCA Bridge Year'!C22) -> 17 | D23: =IF(ISBLANK('I. Schedule 8 CCA Bridge Year'!D22), "", 'I. Schedule 8 CCA Bridge Year'!D22) -> New Electrical Generating Equipment Acq'd after Feb 27/00 Other Than Bldgs | E23: =IF(ISBLANK('I. Schedule 8 CCA Bridge Year'!M22), "", 'I. Schedule 8 CCA Bridge Year'!M22) -> 336265.52 | H23: 336265.52 | I23: 0 | J23: 336265.52 | K23: ='I. Schedule 8 CCA Bridge Year'!K22 -> 0.08 | L23: 26901.2416 | M23: 309364.2784
C24: =IF(ISBLANK('I. Schedule 8 CCA Bridge Year'!C23), "", 'I. Schedule 8 CCA Bridge Year'!C23) -> 42 | D24: =IF(ISBLANK('I. Schedule 8 CCA Bridge Year'!D23), "", 'I. Schedule 8 CCA Bridge Year'!D23) -> Fibre Optic Cable | E24: =IF(ISBLANK('I. Schedule 8 CCA Bridge Year'!M23), "", 'I. Schedule 8 CCA Bridge Year'!M23) -> 0 | H24: 0 | I24: 0 | J24: 0 | K24: ='I. Schedule 8 CCA Bridge Year'!K23 -> 0.12 | L24: =IF(+J24<0,+J24,+J24*K24) -> 0 | M24: 0
C25: =IF(ISBLANK('I. Schedule 8 CCA Bridge Year'!C24), "", 'I. Schedule 8 CCA Bridge Year'!C24) -> 43.1 | D25: =IF(ISBLANK('I. Schedule 8 CCA Bridge Year'!D24), "", 'I. Schedule 8 CCA Bridge Year'!D24) -> Certain Energy-Efficient Electrical Generating Equipment | E25: =IF(ISBLANK('I. Schedule 8 CCA Bridge Year'!M24), "", 'I. Schedule 8 CCA Bridge Year'!M24) -> 0 | H25: 0 | I25: 0 | J25: 0 | K25: ='I. Schedule 8 CCA Bridge Year'!K24 -> 0.3 | L25: 0 | M25: 0
C26: =IF(ISBLANK('I. Schedule 8 CCA Bridge Year'!C25), "", 'I. Schedule 8 CCA Bridge Year'!C25) -> 43.2 | D26: =IF(ISBLANK('I. Schedule 8 CCA Bridge Year'!D25), "", 'I. Schedule 8 CCA Bridge Year'!D25) -> Certain Clean Energy Generation Equipment | E26: =IF(ISBLANK('I. Schedule 8 CCA Bridge Year'!M25), "", 'I. Schedule 8 CCA Bridge Year'!M25) -> 0 | H26: 0 | I26: 0 | J26: 0 | K26: ='I. Schedule 8 CCA Bridge Year'!K25 -> 0.5 | L26: 0 | M26: 0
C27: =IF(ISBLANK('I. Schedule 8 CCA Bridge Year'!C26), "", 'I. Schedule 8 CCA Bridge Year'!C26) -> 45 | D27: =IF(ISBLANK('I. Schedule 8 CCA Bridge Year'!D26), "", 'I. Schedule 8 CCA Bridge Year'!D26) -> Computers & Systems Software acq'd post Mar 22/04 | E27: =IF(ISBLANK('I. Schedule 8 CCA Bridge Year'!M26), "", 'I. Schedule 8 CCA Bridge Year'!M26) -> 19968.3 | H27: 19968.3 | I27: 0 | J27: 19968.3 | K27: ='I. Schedule 8 CCA Bridge Year'!K26 -> 0.45 | L27: 8985.735 | M27: 10982.565
C28: =IF(ISBLANK('I. Schedule 8 CCA Bridge Year'!C27), "", 'I. Schedule 8 CCA Bridge Year'!C27) -> 46 | D28: =IF(ISBLANK('I. Schedule 8 CCA Bridge Year'!D27), "", 'I. Schedule 8 CCA Bridge Year'!D27) -> Data Network Infrastructure Equipment (acq'd post Mar 22/04) | E28: =IF(ISBLANK('I. Schedule 8 CCA Bridge Year'!M27), "", 'I. Schedule 8 CCA Bridge Year'!M27) -> 0 | H28: 0 | I28: 0 | J28: 0 | K28: ='I. Schedule 8 CCA Bridge Year'!K27 -> 0.3 | L28: 0 | M28: 0
C29: =IF(ISBLANK('I. Schedule 8 CCA Bridge Year'!C28), "", 'I. Schedule 8 CCA Bridge Year'!C28) -> 47 | D29: =IF(ISBLANK('I. Schedule 8 CCA Bridge Year'!D28), "", 'I. Schedule 8 CCA Bridge Year'!D28) -> Distribution System - post February 2005 | E29: =IF(ISBLANK('I. Schedule 8 CCA Bridge Year'!M28), "", 'I. Schedule 8 CCA Bridge Year'!M28) -> 376470966.2 | F29: 97253300 | H29: 473724266.2 | I29: 48626650 | J29: 425097616.2 | K29: ='I. Schedule 8 CCA Bridge Year'!K28 -> 0.08 | L29: 34007809.3 | M29: 439716456.9
C30: =IF(ISBLANK('I. Schedule 8 CCA Bridge Year'!C29), "", 'I. Schedule 8 CCA Bridge Year'!C29) -> 50 | D30: =IF(ISBLANK('I. Schedule 8 CCA Bridge Year'!D29), "", 'I. Schedule 8 CCA Bridge Year'!D29) -> Data Network Infrastructure Equipment - post Mar 2007 | E30: =IF(ISBLANK('I. Schedule 8 CCA Bridge Year'!M29), "", 'I. Schedule 8 CCA Bridge Year'!M29) -> 2635062.4 | F30: 2194000 | H30: 4829062.4 | I30: 1097000 | J30: 3732062.4 | K30: ='I. Schedule 8 CCA Bridge Year'!K29 -> 0.55 | L30: 2052634.32 | M30: 2776428.08
C31: =IF(ISBLANK('I. Schedule 8 CCA Bridge Year'!C30), "", 'I. Schedule 8 CCA Bridge Year'!C30) -> 52 | D31: =IF(ISBLANK('I. Schedule 8 CCA Bridge Year'!D30), "", 'I. Schedule 8 CCA Bridge Year'!D30) -> Computer Hardware and system software | E31: =IF(ISBLANK('I. Schedule 8 CCA Bridge Year'!M30), "", 'I. Schedule 8 CCA Bridge Year'!M30) -> 0 | H31: 0 | I31: 0 | J31: 0 | K31: ='I. Schedule 8 CCA Bridge Year'!K30 -> 1 | L31: 0 | M31: 0
C32: =IF(ISBLANK('I. Schedule 8 CCA Bridge Year'!C31), "", 'I. Schedule 8 CCA Bridge Year'!C31) -> 95 | D32: =IF(ISBLANK('I. Schedule 8 CCA Bridge Year'!D31), "", 'I. Schedule 8 CCA Bridge Year'!D31) -> CWIP | E32: =IF(ISBLANK('I. Schedule 8 CCA Bridge Year'!M31), "", 'I. Schedule 8 CCA Bridge Year'!M31) -> 68314217 | H32: 68314217 | I32: 0 | J32: 68314217 | K32: ='I. Schedule 8 CCA Bridge Year'!K31 -> 0 | L32: 0 | M32: 68314217
C33: =IF(ISBLANK('I. Schedule 8 CCA Bridge Year'!C32), "", 'I. Schedule 8 CCA Bridge Year'!C32) ->  | D33: =IF(ISBLANK('I. Schedule 8 CCA Bridge Year'!D32), "", 'I. Schedule 8 CCA Bridge Year'!D32) -> Land | E33: =IF(ISBLANK('I. Schedule 8 CCA Bridge Year'!E32), "", 'I. Schedule 8 CCA Bridge Year'!E32) ->  | H33: 0 | I33: 0 | J33: 0 | K33: ='I. Schedule 8 CCA Bridge Year'!K32 -> 0 | L33: 0 | M33: 0
C34: =IF(ISBLANK('I. Schedule 8 CCA Bridge Year'!C33), "", 'I. Schedule 8 CCA Bridge Year'!C33) ->  | D34: =IF(ISBLANK('I. Schedule 8 CCA Bridge Year'!D33), "", 'I. Schedule 8 CCA Bridge Year'!D33) ->  | E34: =IF(ISBLANK('I. Schedule 8 CCA Bridge Year'!E33), "", 'I. Schedule 8 CCA Bridge Year'!E33) ->  | H34: 0 | I34: 0 | J34: 0 | K34: ='I. Schedule 8 CCA Bridge Year'!K33 -> 0 | L34: 0 | M34: 0
C35: =IF(ISBLANK('I. Schedule 8 CCA Bridge Year'!C34), "", 'I. Schedule 8 CCA Bridge Year'!C34) ->  | D35: =IF(ISBLANK('I. Schedule 8 CCA Bridge Year'!D34), "", 'I. Schedule 8 CCA Bridge Year'!D34) ->  | E35: =IF(ISBLANK('I. Schedule 8 CCA Bridge Year'!E34), "", 'I. Schedule 8 CCA Bridge Year'!E34) ->  | H35: 0 | I35: 0 | J35: 0 | K35: ='I. Schedule 8 CCA Bridge Year'!K34 -> 0 | L35: 0 | M35: 0
C36: =IF(ISBLANK('I. Schedule 8 CCA Bridge Year'!C35), "", 'I. Schedule 8 CCA Bridge Year'!C35) ->  | D36: =IF(ISBLANK('I. Schedule 8 CCA Bridge Year'!D35), "", 'I. Schedule 8 CCA Bridge Year'!D35) ->  | E36: =IF(ISBLANK('I. Schedule 8 CCA Bridge Year'!E35), "", 'I. Schedule 8 CCA Bridge Year'!E35) ->  | H36: =MAX((SUM(E36:G36)),0) -> 0 | I36: 0 | J36: =+H36-I36 -> 0 | K36: ='I. Schedule 8 CCA Bridge Year'!K35 -> 0 | L36: =IF(+J36<0,+J36,+J36*K36) -> 0 | M36: 0
C37: =IF(ISBLANK('I. Schedule 8 CCA Bridge Year'!C36), "", 'I. Schedule 8 CCA Bridge Year'!C36) ->  | D37: =IF(ISBLANK('I. Schedule 8 CCA Bridge Year'!D36), "", 'I. Schedule 8 CCA Bridge Year'!D36) ->  | E37: =IF(ISBLANK('I. Schedule 8 CCA Bridge Year'!E36), "", 'I. Schedule 8 CCA Bridge Year'!E36) ->  | H37: =MAX((SUM(E37:G37)),0) -> 0 | I37: 0 | J37: =+H37-I37 -> 0 | K37: ='I. Schedule 8 CCA Bridge Year'!K36 -> 0 | L37: =IF(+J37<0,+J37,+J37*K37) -> 0 | M37: 0
C38: =IF(ISBLANK('I. Schedule 8 CCA Bridge Year'!C37), "", 'I. Schedule 8 CCA Bridge Year'!C37) ->  | D38: =IF(ISBLANK('I. Schedule 8 CCA Bridge Year'!D37), "", 'I. Schedule 8 CCA Bridge Year'!D37) ->  | E38: =IF(ISBLANK('I. Schedule 8 CCA Bridge Year'!E37), "", 'I. Schedule 8 CCA Bridge Year'!E37) ->  | H38: =MAX((SUM(E38:G38)),0) -> 0 | I38: 0 | J38: =+H38-I38 -> 0 | K38: ='I. Schedule 8 CCA Bridge Year'!K37 -> 0 | L38: =IF(+J38<0,+J38,+J38*K38) -> 0 | M38: 0
C39: =IF(ISBLANK('I. Schedule 8 CCA Bridge Year'!C38), "", 'I. Schedule 8 CCA Bridge Year'!C38) ->  | D39: =IF(ISBLANK('I. Schedule 8 CCA Bridge Year'!D38), "", 'I. Schedule 8 CCA Bridge Year'!D38) ->  | E39: =IF(ISBLANK('I. Schedule 8 CCA Bridge Year'!E38), "", 'I. Schedule 8 CCA Bridge Year'!E38) ->  | H39: 0 | I39: 0 | J39: 0 | K39: ='I. Schedule 8 CCA Bridge Year'!K38 -> 0 | L39: 0 | M39: 0
C40: =IF(ISBLANK('I. Schedule 8 CCA Bridge Year'!C39), "", 'I. Schedule 8 CCA Bridge Year'!C39) ->  | D40: =IF(ISBLANK('I. Schedule 8 CCA Bridge Year'!D39), "", 'I. Schedule 8 CCA Bridge Year'!D39) ->  | E40: =IF(ISBLANK('I. Schedule 8 CCA Bridge Year'!E39), "", 'I. Schedule 8 CCA Bridge Year'!E39) ->  | H40: 0 | I40: 0 | J40: 0 | K40: ='I. Schedule 8 CCA Bridge Year'!K39 -> 0 | L40: 0 | M40: 0
C41: =IF(ISBLANK('I. Schedule 8 CCA Bridge Year'!C40), "", 'I. Schedule 8 CCA Bridge Year'!C40) ->  | D41: =IF(ISBLANK('I. Schedule 8 CCA Bridge Year'!D40), "", 'I. Schedule 8 CCA Bridge Year'!D40) ->  | E41: =IF(ISBLANK('I. Schedule 8 CCA Bridge Year'!E40), "", 'I. Schedule 8 CCA Bridge Year'!E40) ->  | H41: 0 | I41: 0 | J41: 0 | K41: ='I. Schedule 8 CCA Bridge Year'!K40 -> 0 | L41: 0 | M41: 0
C42: =IF(ISBLANK('I. Schedule 8 CCA Bridge Year'!C41), "", 'I. Schedule 8 CCA Bridge Year'!C41) ->  | D42: =IF(ISBLANK('I. Schedule 8 CCA Bridge Year'!D41), "", 'I. Schedule 8 CCA Bridge Year'!D41) ->  | E42: =IF(ISBLANK('I. Schedule 8 CCA Bridge Year'!E41), "", 'I. Schedule 8 CCA Bridge Year'!E41) ->  | H42: 0 | I42: 0 | J42: 0 | K42: ='I. Schedule 8 CCA Bridge Year'!K41 -> 0 | L42: 0 | M42: 0
D43: TOTAL | E43: =SUM(E11:E42) -> 929001736.7 | F43: 116104200 | G43: 0 | H43: 1045105937 | I43: 58052100 | J43: 987053836.7 | L43: =SUM(L11:L42) -> 93624701.77 | M43: =SUM(M11:M42) -> 951481235
B45: Schedule 8 CCA - Test Year 2 (2017)
C48: Class | D48: Class Description | E48: UCC Test Year 2 Opening Balance | F48: Additions | G48: Disposals (Negative) | H48: UCC Before 1/2 Yr Adjustment | I48: 1/2 Year Rule {1/2 Additions Less Disposals} | J48: Reduced UCC | K48: Rate % | L48: Test Year 2 CCA | M48: UCC End of Test Year 2
C49: =C11 -> 1 | D49: =D11 -> Distribution System - post 1987 | E49: =M11 -> 355207992.8 | F49: 422000 | H49: =MAX((SUM(E49:G49)),0) -> 355629992.8 | I49: =IF((F49+G49)<=0, 0,(F49+G49)*0.5) -> 211000 | J49: =+H49-I49 -> 355418992.8 | K49: =K11 -> 0.04 | L49: =IF(+J49<0,+J49,+J49*K49) -> 14216759.71 | M49: =MAX(0,+H49-L49) -> 341413233.1
C50: =C12 -> 1 Enhanced | D50: Non-residential Buildings Reg. 1100(1)(a.1) election | E50: =M12 -> 0 | H50: =MAX((SUM(E50:G50)),0) -> 0 | I50: =IF((F50+G50)<=0, 0,(F50+G50)*0.5) -> 0 | J50: 0 | K50: =K12 -> 0.06 | L50: 0 | M50: 0
C51: =C13 -> 2 | D51: Distribution System - pre 1988 | E51: 42310926.22 | H51: 42310926.22 | I51: =IF((F51+G51)<=0, 0,(F51+G51)*0.5) -> 0 | J51: 42310926.22 | K51: 0.06 | L51: 2538655.573 | M51: 39772270.65
C52: =C14 -> 8 | D52: General Office/Stores Equip | E52: 25716228.96 | F52: 890000 | H52: 26606228.96 | I52: 445000 | J52: 26161228.96 | K52: 0.2 | L52: 5232245.792 | M52: 21373983.17
C53: =C15 -> 10 | D53: Computer Hardware/ Vehicles | E53: 6451634.12 | F53: 2365000 | H53: 8816634.12 | I53: 1182500 | J53: 7634134.12 | K53: 0.3 | L53: 2290240.236 | M53: 6526393.884
C54: =C16 -> 10.1 | D54: Certain Automobiles | E54: 0 | H54: 0 | I54: 0 | J54: 0 | K54: 0.3 | L54: 0 | M54: 0
C55: =C17 -> 12 | D55: Computer Software | E55: 6149950 | F55: 9123900 | H55: 15273850 | I55: 4561950 | J55: 10711900 | K55: 1 | L55: 10711900 | M55: 4561950
C56: =C18 -> 13 1 | D56: Lease # 1 | E56: 147008 | H56: 147008 | I56: 0 | J56: 147008 | L56: 9727 | M56: 137281
C57: =C19 -> 13 2 | D57: Lease #2 | E57: 3079465 | H57: 3079465 | I57: 0 | J57: 3079465 | L57: 256622 | M57: 2822843
C58: =C20 -> 13 3 | D58: Lease # 3 | E58: 423847 | H58: 423847 | I58: 0 | J58: 423847 | L58: 31395 | M58: 392452
C59: =C21 -> 13 4 | D59: Lease # 4 | E59: 866734 | H59: 866734 | I59: 0 | J59: 866734 | L59: 36882 | M59: 829852
C60: =C22 -> 14 | D60: Franchise | E60: 0 | H60: 0 | I60: 0 | J60: 0 | L60: 0 | M60: 0
C61: =C23 -> 17 | D61: New Electrical Generating Equipment Acq'd after Feb 27/00 Other Than Bldgs | E61: 309364.2784 | H61: 309364.2784 | I61: 0 | J61: 309364.2784 | K61: 0.08 | L61: 24749.14227 | M61: 284615.1361
C62: =C24 -> 42 | D62: Fibre Optic Cable | E62: 0 | H62: 0 | I62: 0 | J62: 0 | K62: 0.12 | L62: 0 | M62: 0
C63: =C25 -> 43.1 | D63: Certain Energy-Efficient Electrical Generating Equipment | E63: 0 | H63: 0 | I63: 0 | J63: 0 | K63: 0.3 | L63: 0 | M63: 0
C64: =C26 -> 43.2 | D64: Certain Clean Energy Generation Equipment | E64: 0 | H64: 0 | I64: 0 | J64: 0 | K64: 0.5 | L64: 0 | M64: 0
C65: =C27 -> 45 | D65: Computers & Systems Software acq'd post Mar 22/04 | E65: 10982.565 | H65: 10982.565 | I65: 0 | J65: 10982.565 | K65: 0.45 | L65: 4942.15425 | M65: 6040.41075
C66: =C28 -> 46 | D66: Data Network Infrastructure Equipment (acq'd post Mar 22/04) | E66: 0 | H66: 0 | I66: 0 | J66: 0 | K66: 0.3 | L66: 0 | M66: 0
C67: =C29 -> 47 | D67: Distribution System - post February 2005 | E67: 439716456.9 | F67: 116609100 | H67: 556325556.9 | I67: 58304550 | J67: 498021006.9 | K67: 0.08 | L67: 39841680.55 | M67: 516483876.4
C68: =C30 -> 50 | D68: Data Network Infrastructure Equipment - post Mar 2007 | E68: 2776428.08 | F68: 2601000 | H68: 5377428.08 | I68: 1300500 | J68: 4076928.08 | K68: 0.55 | L68: 2242310.444 | M68: 3135117.636
C69: =C31 -> 52 | D69: Computer Hardware and system software | E69: 0 | H69: 0 | I69: 0 | J69: 0 | K69: 1 | L69: 0 | M69: 0
C70: =C32 -> 95 | D70: CWIP | E70: 68314217 | H70: 68314217 | I70: 0 | J70: 68314217 | K70: 0 | L70: 0 | M70: 68314217
C71: =IF(ISBLANK('I. Schedule 8 CCA Bridge Year'!C70), "", 'I. Schedule 8 CCA Bridge Year'!C70) ->  | D71: =IF(ISBLANK('I. Schedule 8 CCA Bridge Year'!D70), "", 'I. Schedule 8 CCA Bridge Year'!D70) ->  | E71: 0 | H71: 0 | I71: 0 | J71: 0 | K71: 0 | L71: 0 | M71: 0
C72: =IF(ISBLANK('I. Schedule 8 CCA Bridge Year'!C71), "", 'I. Schedule 8 CCA Bridge Year'!C71) ->  | D72: =IF(ISBLANK('I. Schedule 8 CCA Bridge Year'!D71), "", 'I. Schedule 8 CCA Bridge Year'!D71) ->  | E72: 0 | H72: 0 | I72: 0 | J72: 0 | K72: 0 | L72: 0 | M72: 0
C73: =IF(ISBLANK('I. Schedule 8 CCA Bridge Year'!C72), "", 'I. Schedule 8 CCA Bridge Year'!C72) ->  | D73: =IF(ISBLANK('I. Schedule 8 CCA Bridge Year'!D72), "", 'I. Schedule 8 CCA Bridge Year'!D72) ->  | E73: 0 | H73: 0 | I73: 0 | J73: 0 | K73: 0 | L73: 0 | M73: 0
C74: =IF(ISBLANK('I. Schedule 8 CCA Bridge Year'!C73), "", 'I. Schedule 8 CCA Bridge Year'!C73) ->  | D74: =IF(ISBLANK('I. Schedule 8 CCA Bridge Year'!D73), "", 'I. Schedule 8 CCA Bridge Year'!D73) ->  | E74: 0 | H74: =MAX((SUM(E74:G74)),0) -> 0 | I74: 0 | J74: =+H74-I74 -> 0 | K74: 0 | L74: =IF(+J74<0,+J74,+J74*K74) -> 0 | M74: 0
C75: =IF(ISBLANK('I. Schedule 8 CCA Bridge Year'!C74), "", 'I. Schedule 8 CCA Bridge Year'!C74) ->  | D75: =IF(ISBLANK('I. Schedule 8 CCA Bridge Year'!D74), "", 'I. Schedule 8 CCA Bridge Year'!D74) ->  | E75: 0 | H75: =MAX((SUM(E75:G75)),0) -> 0 | I75: 0 | J75: =+H75-I75 -> 0 | K75: 0 | L75: =IF(+J75<0,+J75,+J75*K75) -> 0 | M75: 0
C76: =IF(ISBLANK('I. Schedule 8 CCA Bridge Year'!C75), "", 'I. Schedule 8 CCA Bridge Year'!C75) ->  | D76: =IF(ISBLANK('I. Schedule 8 CCA Bridge Year'!D75), "", 'I. Schedule 8 CCA Bridge Year'!D75) ->  | E76: 0 | H76: =MAX((SUM(E76:G76)),0) -> 0 | I76: 0 | J76: =+H76-I76 -> 0 | K76: 0 | L76: =IF(+J76<0,+J76,+J76*K76) -> 0 | M76: 0
C77: =IF(ISBLANK('I. Schedule 8 CCA Bridge Year'!C76), "", 'I. Schedule 8 CCA Bridge Year'!C76) ->  | D77: =IF(ISBLANK('I. Schedule 8 CCA Bridge Year'!D76), "", 'I. Schedule 8 CCA Bridge Year'!D76) ->  | E77: 0 | H77: =MAX((SUM(E77:G77)),0) -> 0 | I77: 0 | J77: =+H77-I77 -> 0 | K77: 0 | L77: =IF(+J77<0,+J77,+J77*K77) -> 0 | M77: 0
C78: =IF(ISBLANK('I. Schedule 8 CCA Bridge Year'!C77), "", 'I. Schedule 8 CCA Bridge Year'!C77) ->  | D78: =IF(ISBLANK('I. Schedule 8 CCA Bridge Year'!D77), "", 'I. Schedule 8 CCA Bridge Year'!D77) ->  | E78: 0 | H78: 0 | I78: 0 | J78: 0 | K78: 0 | L78: 0 | M78: 0
C79: =IF(ISBLANK('I. Schedule 8 CCA Bridge Year'!C78), "", 'I. Schedule 8 CCA Bridge Year'!C78) ->  | D79: =IF(ISBLANK('I. Schedule 8 CCA Bridge Year'!D78), "", 'I. Schedule 8 CCA Bridge Year'!D78) ->  | E79: 0 | H79: 0 | I79: 0 | J79: 0 | K79: 0 | L79: 0 | M79: 0
C80: =IF(ISBLANK('I. Schedule 8 CCA Bridge Year'!C79), "", 'I. Schedule 8 CCA Bridge Year'!C79) ->  | D80: =IF(ISBLANK('I. Schedule 8 CCA Bridge Year'!D79), "", 'I. Schedule 8 CCA Bridge Year'!D79) ->  | E80: 0 | H80: 0 | I80: 0 | J80: 0 | K80: =K42 -> 0 | L80: 0 | M80: 0
D81: TOTAL | E81: =SUM(E49:E80) -> 951481235 | F81: 132011000 | G81: 0 | H81: 1083492235 | I81: 66005500 | J81: 1017486735 | L81: =SUM(L49:L80) -> 77438109.61 | M81: =SUM(M49:M80) -> 1006054125
B83: Schedule 8 CCA - Test Year 3 (2018)
C86: Class | D86: Class Description | E86: UCC Test Year 3 Opening Balance | F86: Additions | G86: Disposals (Negative) | H86: UCC Before 1/2 Yr Adjustment | I86: 1/2 Year Rule {1/2 Additions Less Disposals} | J86: Reduced UCC | K86: Rate % | L86: Test Year 3 CCA | M86: UCC End of Test Year 3
C87: =C49 -> 1 | D87: =D49 -> Distribution System - post 1987 | E87: =M49 -> 341413233.1 | F87: 563000 | H87: =MAX((SUM(E87:G87)),0) -> 341976233.1 | I87: =IF((F87+G87)<=0, 0,(F87+G87)*0.5) -> 281500 | J87: =+H87-I87 -> 341694733.1 | K87: =K49 -> 0.04 | L87: =IF(+J87<0,+J87,+J87*K87) -> 13667789.33 | M87: =MAX(0,+H87-L87) -> 328308443.8
C88: =C50 -> 1 Enhanced | D88: Non-residential Buildings Reg. 1100(1)(a.1) election | E88: =M50 -> 0 | H88: =MAX((SUM(E88:G88)),0) -> 0 | I88: =IF((F88+G88)<=0, 0,(F88+G88)*0.5) -> 0 | J88: 0 | K88: =K50 -> 0.06 | L88: 0 | M88: 0
C89: =C51 -> 2 | D89: Distribution System - pre 1988 | E89: 39772270.65 | H89: =MAX((SUM(E89:G89)),0) -> 39772270.65 | I89: =IF((F89+G89)<=0, 0,(F89+G89)*0.5) -> 0 | J89: 39772270.65 | K89: 0.06 | L89: 2386336.239 | M89: 37385934.41
C90: =C52 -> 8 | D90: General Office/Stores Equip | E90: 21373983.17 | F90: 925000 | H90: 22298983.17 | I90: 462500 | J90: 21836483.17 | K90: 0.2 | L90: 4367296.634 | M90: 17931686.53
C91: =C53 -> 10 | D91: Computer Hardware/ Vehicles | E91: 6526393.884 | F91: 2910000 | H91: 9436393.884 | I91: 1455000 | J91: 7981393.884 | K91: 0.3 | L91: 2394418.165 | M91: 7041975.719
C92: =C54 -> 10.1 | D92: Certain Automobiles | E92: 0 | H92: 0 | I92: 0 | J92: 0 | K92: 0.3 | L92: 0 | M92: 0
C93: =C55 -> 12 | D93: Computer Software | E93: 4561950 | F93: 6254200 | H93: 10816150 | I93: 3127100 | J93: 7689050 | K93: 1 | L93: 7689050 | M93: 3127100
C94: =C56 -> 13 1 | D94: Lease # 1 | E94: 137281 | H94: 137281 | I94: 0 | J94: 137281 | L94: 9727 | M94: 127554
C95: =C57 -> 13 2 | D95: Lease #2 | E95: 2822843 | H95: 2822843 | I95: 0 | J95: 2822843 | L95: 256622 | M95: 2566221
C96: =C58 -> 13 3 | D96: Lease # 3 | E96: 392452 | H96: 392452 | I96: 0 | J96: 392452 | L96: 31395 | M96: 361057
C97: =C59 -> 13 4 | D97: Lease # 4 | E97: 829852 | H97: 829852 | I97: 0 | J97: 829852 | L97: 36882 | M97: 792970
C98: =C60 -> 14 | D98: Franchise | E98: 0 | H98: 0 | I98: 0 | J98: 0 | L98: 0 | M98: 0
C99: =C61 -> 17 | D99: New Electrical Generating Equipment Acq'd after Feb 27/00 Other Than Bldgs | E99: 284615.1361 | H99: 284615.1361 | I99: 0 | J99: 284615.1361 | K99: 0.08 | L99: 22769.21089 | M99: 261845.9252
C100: =C62 -> 42 | D100: Fibre Optic Cable | E100: 0 | H100: 0 | I100: 0 | J100: 0 | K100: 0.12 | L100: 0 | M100: 0
C101: =C63 -> 43.1 | D101: Certain Energy-Efficient Electrical Generating Equipment | E101: 0 | H101: 0 | I101: 0 | J101: 0 | K101: 0.3 | L101: 0 | M101: 0
C102: =C64 -> 43.2 | D102: Certain Clean Energy Generation Equipment | E102: 0 | H102: 0 | I102: 0 | J102: 0 | K102: 0.5 | L102: 0 | M102: 0
C103: =C65 -> 45 | D103: Computers & Systems Software acq'd post Mar 22/04 | E103: 6040.41075 | H103: 6040.41075 | I103: 0 | J103: 6040.41075 | K103: 0.45 | L103: 2718.184837 | M103: 3322.225912
C104: =C66 -> 46 | D104: Data Network Infrastructure Equipment (acq'd post Mar 22/04) | E104: 0 | H104: 0 | I104: 0 | J104: 0 | K104: 0.3 | L104: 0 | M104: 0
C105: =C67 -> 47 | D105: Distribution System - post February 2005 | E105: 516483876.4 | F105: 110141100 | H105: 626624976.4 | I105: 55070550 | J105: 571554426.4 | K105: 0.08 | L105: 45724354.11 | M105: 580900622.2
C106: =C68 -> 50 | D106: Data Network Infrastructure Equipment - post Mar 2007 | E106: 3135117.636 | F106: 1355000 | H106: 4490117.636 | I106: 677500 | J106: 3812617.636 | K106: 0.55 | L106: 2096939.7 | M106: 2393177.936
C107: =C69 -> 52 | D107: Computer Hardware and system software | E107: 0 | H107: 0 | I107: 0 | J107: 0 | K107: 1 | L107: 0 | M107: 0
C108: =C70 -> 95 | D108: CWIP | E108: 68314217 | H108: 68314217 | I108: 0 | J108: 68314217 | K108: 0 | L108: 0 | M108: 68314217
C109: =IF(ISBLANK('I. Schedule 8 CCA Bridge Year'!C108), "", 'I. Schedule 8 CCA Bridge Year'!C108) ->  | D109: =IF(ISBLANK('I. Schedule 8 CCA Bridge Year'!D108), "", 'I. Schedule 8 CCA Bridge Year'!D108) ->  | E109: 0 | H109: 0 | I109: 0 | J109: 0 | K109: 0 | L109: 0 | M109: 0
C110: =IF(ISBLANK('I. Schedule 8 CCA Bridge Year'!C109), "", 'I. Schedule 8 CCA Bridge Year'!C109) ->  | D110: =IF(ISBLANK('I. Schedule 8 CCA Bridge Year'!D109), "", 'I. Schedule 8 CCA Bridge Year'!D109) ->  | E110: 0 | H110: 0 | I110: 0 | J110: 0 | K110: 0 | L110: 0 | M110: 0
C111: =IF(ISBLANK('I. Schedule 8 CCA Bridge Year'!C110), "", 'I. Schedule 8 CCA Bridge Year'!C110) ->  | D111: =IF(ISBLANK('I. Schedule 8 CCA Bridge Year'!D110), "", 'I. Schedule 8 CCA Bridge Year'!D110) ->  | E111: 0 | H111: 0 | I111: 0 | J111: 0 | K111: 0 | L111: 0 | M111: 0
C112: =IF(ISBLANK('I. Schedule 8 CCA Bridge Year'!C111), "", 'I. Schedule 8 CCA Bridge Year'!C111) ->  | D112: =IF(ISBLANK('I. Schedule 8 CCA Bridge Year'!D111), "", 'I. Schedule 8 CCA Bridge Year'!D111) ->  | E112: 0 | H112: =MAX((SUM(E112:G112)),0) -> 0 | I112: 0 | J112: =+H112-I112 -> 0 | K112: 0 | L112: =IF(+J112<0,+J112,+J112*K112) -> 0 | M112: 0
C113: =IF(ISBLANK('I. Schedule 8 CCA Bridge Year'!C112), "", 'I. Schedule 8 CCA Bridge Year'!C112) ->  | D113: =IF(ISBLANK('I. Schedule 8 CCA Bridge Year'!D112), "", 'I. Schedule 8 CCA Bridge Year'!D112) ->  | E113: 0 | H113: =MAX((SUM(E113:G113)),0) -> 0 | I113: 0 | J113: =+H113-I113 -> 0 | K113: 0 | L113: =IF(+J113<0,+J113,+J113*K113) -> 0 | M113: 0
C114: =IF(ISBLANK('I. Schedule 8 CCA Bridge Year'!C113), "", 'I. Schedule 8 CCA Bridge Year'!C113) ->  | D114: =IF(ISBLANK('I. Schedule 8 CCA Bridge Year'!D113), "", 'I. Schedule 8 CCA Bridge Year'!D113) ->  | E114: 0 | H114: =MAX((SUM(E114:G114)),0) -> 0 | I114: 0 | J114: =+H114-I114 -> 0 | K114: 0 | L114: =IF(+J114<0,+J114,+J114*K114) -> 0 | M114: 0
C115: =IF(ISBLANK('I. Schedule 8 CCA Bridge Year'!C114), "", 'I. Schedule 8 CCA Bridge Year'!C114) ->  | D115: =IF(ISBLANK('I. Schedule 8 CCA Bridge Year'!D114), "", 'I. Schedule 8 CCA Bridge Year'!D114) ->  | E115: 0 | H115: =MAX((SUM(E115:G115)),0) -> 0 | I115: 0 | J115: =+H115-I115 -> 0 | K115: 0 | L115: =IF(+J115<0,+J115,+J115*K115) -> 0 | M115: 0
C116: =IF(ISBLANK('I. Schedule 8 CCA Bridge Year'!C115), "", 'I. Schedule 8 CCA Bridge Year'!C115) ->  | D116: =IF(ISBLANK('I. Schedule 8 CCA Bridge Year'!D115), "", 'I. Schedule 8 CCA Bridge Year'!D115) ->  | E116: 0 | H116: 0 | I116: 0 | J116: 0 | K116: 0 | L116: 0 | M116: 0
C117: =IF(ISBLANK('I. Schedule 8 CCA Bridge Year'!C116), "", 'I. Schedule 8 CCA Bridge Year'!C116) ->  | D117: =IF(ISBLANK('I. Schedule 8 CCA Bridge Year'!D116), "", 'I. Schedule 8 CCA Bridge Year'!D116) ->  | E117: 0 | H117: 0 | I117: 0 | J117: 0 | K117: 0 | L117: 0 | M117: 0
C118: =IF(ISBLANK('I. Schedule 8 CCA Bridge Year'!C117), "", 'I. Schedule 8 CCA Bridge Year'!C117) ->  | D118: =IF(ISBLANK('I. Schedule 8 CCA Bridge Year'!D117), "", 'I. Schedule 8 CCA Bridge Year'!D117) ->  | E118: 0 | H118: 0 | I118: 0 | J118: 0 | K118: =K80 -> 0 | L118: 0 | M118: 0
D119: TOTAL | E119: =SUM(E87:E118) -> 1006054125 | F119: 122148300 | G119: 0 | H119: 1128202425 | I119: 61074150 | J119: 1067128275 | L119: =SUM(L87:L118) -> 78686297.57 | M119: =SUM(M87:M118) -> 1049516128
B121: Schedule 8 CCA - Test Year 4 (2019)
C124: Class | D124: Class Description | E124: UCC Test Year 4 Opening Balance | F124: Additions | G124: Disposals (Negative) | H124: UCC Before 1/2 Yr Adjustment | I124: 1/2 Year Rule {1/2 Additions Less Disposals} | J124: Reduced UCC | K124: Rate % | L124: Test Year 4 CCA | M124: UCC End of Test Year 4
C125: =C87 -> 1 | D125: Distribution System - post 1987 | E125: =M87 -> 328308443.8 | F125: 554000 | H125: =MAX((SUM(E125:G125)),0) -> 328862443.8 | I125: =IF((F125+G125)<=0, 0,(F125+G125)*0.5) -> 277000 | J125: =+H125-I125 -> 328585443.8 | K125: =K87 -> 0.04 | L125: =IF(+J125<0,+J125,+J125*K125) -> 13143417.75 | M125: =MAX(0,+H125-L125) -> 315719026.1
C126: 1 Enhanced | D126: Non-residential Buildings Reg. 1100(1)(a.1) election | E126: 0 | H126: =MAX((SUM(E126:G126)),0) -> 0 | I126: =IF((F126+G126)<=0, 0,(F126+G126)*0.5) -> 0 | J126: 0 | K126: 0.06 | L126: 0 | M126: 0
C127: 2 | D127: Distribution System - pre 1988 | E127: 37385934.41 | H127: =MAX((SUM(E127:G127)),0) -> 37385934.41 | I127: =IF((F127+G127)<=0, 0,(F127+G127)*0.5) -> 0 | J127: 37385934.41 | K127: 0.06 | L127: 2243156.065 | M127: 35142778.34
C128: 8 | D128: General Office/Stores Equip | E128: 17931686.53 | F128: 919000 | H128: 18850686.53 | I128: 459500 | J128: 18391186.53 | K128: 0.2 | L128: 3678237.307 | M128: 15172449.23
C129: 10 | D129: Computer Hardware/ Vehicles | E129: 7041975.719 | F129: 3098000 | H129: 10139975.72 | I129: 1549000 | J129: 8590975.719 | K129: 0.3 | L129: 2577292.716 | M129: 7562683.003
C130: 10.1 | D130: Certain Automobiles | E130: 0 | H130: 0 | I130: 0 | J130: 0 | K130: 0.3 | L130: 0 | M130: 0
C131: 12 | D131: Computer Software | E131: 3127100 | F131: 7803700 | H131: 10930800 | I131: 3901850 | J131: 7028950 | K131: 1 | L131: 7028950 | M131: 3901850
C132: 13 1 | D132: Lease # 1 | E132: 127554 | H132: 127554 | I132: 0 | J132: 127554 | L132: 9727 | M132: 117827
C133: 13 2 | D133: Lease #2 | E133: 2566221 | H133: 2566221 | I133: 0 | J133: 2566221 | L133: 256622 | M133: 2309599
C134: 13 3 | D134: Lease # 3 | E134: 361057 | H134: 361057 | I134: 0 | J134: 361057 | L134: 31395 | M134: 329662
C135: 13 4 | D135: Lease # 4 | E135: 792970 | H135: 792970 | I135: 0 | J135: 792970 | L135: 36882 | M135: 756088
C136: 14 | D136: Franchise | E136: 0 | H136: 0 | I136: 0 | J136: 0 | L136: 0 | M136: 0
C137: 17 | D137: New Electrical Generating Equipment Acq'd after Feb 27/00 Other Than Bldgs | E137: 261845.9252 | H137: 261845.9252 | I137: 0 | J137: 261845.9252 | K137: =K99 -> 0.08 | L137: 20947.67402 | M137: 240898.2512
C138: 42 | D138: Fibre Optic Cable | E138: 0 | H138: 0 | I138: 0 | J138: 0 | K138: 0.12 | L138: 0 | M138: 0
C139: 43.1 | D139: Certain Energy-Efficient Electrical Generating Equipment | E139: 0 | H139: 0 | I139: 0 | J139: 0 | K139: 0.3 | L139: 0 | M139: 0
C140: 43.2 | D140: Certain Clean Energy Generation Equipment | E140: 0 | H140: 0 | I140: 0 | J140: 0 | K140: 0.5 | L140: 0 | M140: 0
C141: 45 | D141: Computers & Systems Software acq'd post Mar 22/04 | E141: 3322.225912 | H141: 3322.225912 | I141: 0 | J141: 3322.225912 | K141: 0.45 | L141: 1495.001661 | M141: 1827.224252
C142: 46 | D142: Data Network Infrastructure Equipment (acq'd post Mar 22/04) | E142: 0 | H142: 0 | I142: 0 | J142: 0 | K142: 0.3 | L142: 0 | M142: 0
C143: 47 | D143: Distribution System - post February 2005 | E143: 580900622.2 | F143: 117463000 | H143: 698363622.2 | I143: 58731500 | J143: 639632122.2 | K143: 0.08 | L143: 51170569.78 | M143: 647193052.5
C144: 50 | D144: Data Network Infrastructure Equipment - post Mar 2007 | E144: 2393177.936 | F144: 2310000 | H144: 4703177.936 | I144: 1155000 | J144: 3548177.936 | K144: 0.55 | L144: 1951497.865 | M144: 2751680.071
C145: 52 | D145: Computer Hardware and system software | E145: 0 | H145: 0 | I145: 0 | J145: 0 | K145: 1 | L145: 0 | M145: 0
C146: 95 | D146: CWIP | E146: 68314217 | H146: 68314217 | I146: 0 | J146: 68314217 | K146: 0 | L146: 0 | M146: 68314217
C147: =IF(ISBLANK('I. Schedule 8 CCA Bridge Year'!C146), "", 'I. Schedule 8 CCA Bridge Year'!C146) ->  | D147: =IF(ISBLANK('I. Schedule 8 CCA Bridge Year'!D146), "", 'I. Schedule 8 CCA Bridge Year'!D146) ->  | E147: 0 | H147: 0 | I147: 0 | J147: 0 | K147: 0 | L147: 0 | M147: 0
C148: =IF(ISBLANK('I. Schedule 8 CCA Bridge Year'!C147), "", 'I. Schedule 8 CCA Bridge Year'!C147) ->  | D148: =IF(ISBLANK('I. Schedule 8 CCA Bridge Year'!D147), "", 'I. Schedule 8 CCA Bridge Year'!D147) ->  | E148: 0 | H148: 0 | I148: 0 | J148: 0 | K148: 0 | L148: 0 | M148: 0
C149: =IF(ISBLANK('I. Schedule 8 CCA Bridge Year'!C148), "", 'I. Schedule 8 CCA Bridge Year'!C148) ->  | D149: =IF(ISBLANK('I. Schedule 8 CCA Bridge Year'!D148), "", 'I. Schedule 8 CCA Bridge Year'!D148) ->  | E149: 0 | H149: 0 | I149: 0 | J149: 0 | K149: 0 | L149: 0 | M149: 0
C150: =IF(ISBLANK('I. Schedule 8 CCA Bridge Year'!C149), "", 'I. Schedule 8 CCA Bridge Year'!C149) ->  | D150: =IF(ISBLANK('I. Schedule 8 CCA Bridge Year'!D149), "", 'I. Schedule 8 CCA Bridge Year'!D149) ->  | E150: 0 | H150: =MAX((SUM(E150:G150)),0) -> 0 | I150: 0 | J150: =+H150-I150 -> 0 | K150: 0 | L150: =IF(+J150<0,+J150,+J150*K150) -> 0 | M150: 0
C151: =IF(ISBLANK('I. Schedule 8 CCA Bridge Year'!C150), "", 'I. Schedule 8 CCA Bridge Year'!C150) ->  | D151: =IF(ISBLANK('I. Schedule 8 CCA Bridge Year'!D150), "", 'I. Schedule 8 CCA Bridge Year'!D150) ->  | E151: 0 | H151: =MAX((SUM(E151:G151)),0) -> 0 | I151: 0 | J151: =+H151-I151 -> 0 | K151: 0 | L151: =IF(+J151<0,+J151,+J151*K151) -> 0 | M151: 0
C152: =IF(ISBLANK('I. Schedule 8 CCA Bridge Year'!C151), "", 'I. Schedule 8 CCA Bridge Year'!C151) ->  | D152: =IF(ISBLANK('I. Schedule 8 CCA Bridge Year'!D151), "", 'I. Schedule 8 CCA Bridge Year'!D151) ->  | E152: 0 | H152: =MAX((SUM(E152:G152)),0) -> 0 | I152: 0 | J152: =+H152-I152 -> 0 | K152: 0 | L152: =IF(+J152<0,+J152,+J152*K152) -> 0 | M152: 0
C153: =IF(ISBLANK('I. Schedule 8 CCA Bridge Year'!C152), "", 'I. Schedule 8 CCA Bridge Year'!C152) ->  | D153: =IF(ISBLANK('I. Schedule 8 CCA Bridge Year'!D152), "", 'I. Schedule 8 CCA Bridge Year'!D152) ->  | E153: 0 | H153: =MAX((SUM(E153:G153)),0) -> 0 | I153: 0 | J153: =+H153-I153 -> 0 | K153: 0 | L153: =IF(+J153<0,+J153,+J153*K153) -> 0 | M153: 0
C154: =IF(ISBLANK('I. Schedule 8 CCA Bridge Year'!C153), "", 'I. Schedule 8 CCA Bridge Year'!C153) ->  | D154: =IF(ISBLANK('I. Schedule 8 CCA Bridge Year'!D153), "", 'I. Schedule 8 CCA Bridge Year'!D153) ->  | E154: 0 | H154: 0 | I154: 0 | J154: 0 | K154: 0 | L154: 0 | M154: 0
C155: =IF(ISBLANK('I. Schedule 8 CCA Bridge Year'!C154), "", 'I. Schedule 8 CCA Bridge Year'!C154) ->  | D155: =IF(ISBLANK('I. Schedule 8 CCA Bridge Year'!D154), "", 'I. Schedule 8 CCA Bridge Year'!D154) ->  | E155: 0 | H155: 0 | I155: 0 | J155: 0 | K155: 0 | L155: 0 | M155: 0
C156: =IF(ISBLANK('I. Schedule 8 CCA Bridge Year'!C155), "", 'I. Schedule 8 CCA Bridge Year'!C155) ->  | D156: =IF(ISBLANK('I. Schedule 8 CCA Bridge Year'!D155), "", 'I. Schedule 8 CCA Bridge Year'!D155) ->  | E156: 0 | H156: 0 | I156: 0 | J156: 0 | K156: 0 | L156: 0 | M156: 0
D157: TOTAL | E157: =SUM(E125:E156) -> 1049516128 | F157: 132147700 | G157: 0 | H157: 1181663828 | I157: 66073850 | J157: 1115589978 | L157: =SUM(L125:L156) -> 82150190.16 | M157: =SUM(M125:M156) -> 1099513638
B159: Schedule 8 CCA - Test Year 5 (2020)
C162: Class | D162: Class Description | E162: UCC Test Year 5 Opening Balance | F162: Additions | G162: Disposals (Negative) | H162: UCC Before 1/2 Yr Adjustment | I162: 1/2 Year Rule {1/2 Additions Less Disposals} | J162: Reduced UCC | K162: Rate % | L162: Test Year 5 CCA | M162: UCC End of Test Year 5
C163: =C125 -> 1 | D163: =D125 -> Distribution System - post 1987 | E163: =M125 -> 315719026.1 | F163: 556000 | H163: =MAX((SUM(E163:G163)),0) -> 316275026.1 | I163: =IF((F163+G163)<=0, 0,(F163+G163)*0.5) -> 278000 | J163: =+H163-I163 -> 315997026.1 | K163: =K125 -> 0.04 | L163: =IF(+J163<0,+J163,+J163*K163) -> 12639881.04 | M163: =MAX(0,+H163-L163) -> 303635145
C164: =C126 -> 1 Enhanced | D164: Non-residential Buildings Reg. 1100(1)(a.1) election | E164: =M126 -> 0 | H164: =MAX((SUM(E164:G164)),0) -> 0 | I164: =IF((F164+G164)<=0, 0,(F164+G164)*0.5) -> 0 | J164: 0 | K164: =K126 -> 0.06 | L164: 0 | M164: 0
C165: =C127 -> 2 | D165: Distribution System - pre 1988 | E165: 35142778.34 | H165: =MAX((SUM(E165:G165)),0) -> 35142778.34 | I165: =IF((F165+G165)<=0, 0,(F165+G165)*0.5) -> 0 | J165: 35142778.34 | K165: 0.06 | L165: 2108566.701 | M165: 33034211.64
C166: =C128 -> 8 | D166: General Office/Stores Equip | E166: 15172449.23 | F166: 1139000 | H166: 16311449.23 | I166: 569500 | J166: 15741949.23 | K166: 0.2 | L166: 3148389.846 | M166: 13163059.38
C167: =C129 -> 10 | D167: Computer Hardware/ Vehicles | E167: 7562683.003 | F167: 2948000 | H167: 10510683 | I167: 1474000 | J167: 9036683.003 | K167: 0.3 | L167: 2711004.901 | M167: 7799678.102
C168: =C130 -> 10.1 | D168: Certain Automobiles | E168: 0 | H168: 0 | I168: 0 | J168: 0 | K168: 0.3 | L168: 0 | M168: 0
C169: =C131 -> 12 | D169: Computer Software | E169: 3901850 | F169: 8127900 | H169: 12029750 | I169: 4063950 | J169: 7965800 | K169: 1 | L169: 7965800 | M169: 4063950
C170: =C132 -> 13 1 | D170: Lease # 1 | E170: 117827 | H170: 117827 | I170: 0 | J170: 117827 | L170: 9727 | M170: 108100
C171: =C133 -> 13 2 | D171: Lease #2 | E171: 2309599 | H171: 2309599 | I171: 0 | J171: 2309599 | L171: 256622 | M171: 2052977
C172: =C134 -> 13 3 | D172: Lease # 3 | E172: 329662 | H172: 329662 | I172: 0 | J172: 329662 | L172: 31395 | M172: 298267
C173: =C135 -> 13 4 | D173: Lease # 4 | E173: 756088 | H173: 756088 | I173: 0 | J173: 756088 | L173: 36882 | M173: 719206
C174: =C136 -> 14 | D174: Franchise | E174: 0 | H174: 0 | I174: 0 | J174: 0 | L174: 0 | M174: 0
C175: =C137 -> 17 | D175: New Electrical Generating Equipment Acq'd after Feb 27/00 Other Than Bldgs | E175: 240898.2512 | H175: 240898.2512 | I175: 0 | J175: 240898.2512 | K175: 0.08 | L175: 19271.8601 | M175: 221626.3911
C176: =C138 -> 42 | D176: Fibre Optic Cable | E176: 0 | H176: 0 | I176: 0 | J176: 0 | K176: 0.12 | L176: 0 | M176: 0
C177: =C139 -> 43.1 | D177: Certain Energy-Efficient Electrical Generating Equipment | E177: 0 | H177: 0 | I177: 0 | J177: 0 | K177: 0.3 | L177: 0 | M177: 0
C178: =C140 -> 43.2 | D178: Certain Clean Energy Generation Equipment | E178: 0 | H178: 0 | I178: 0 | J178: 0 | K178: 0.5 | L178: 0 | M178: 0
C179: =C141 -> 45 | D179: Computers & Systems Software acq'd post Mar 22/04 | E179: 1827.224252 | H179: 1827.224252 | I179: 0 | J179: 1827.224252 | K179: 0.45 | L179: 822.2509133 | M179: 1004.973339
C180: =C142 -> 46 | D180: Data Network Infrastructure Equipment (acq'd post Mar 22/04) | E180: 0 | H180: 0 | I180: 0 | J180: 0 | K180: 0.3 | L180: 0 | M180: 0
C181: =C143 -> 47 | D181: Distribution System - post February 2005 | E181: 647193052.5 | F181: 110105300 | H181: 757298352.5 | I181: 55052650 | J181: 702245702.5 | K181: 0.08 | L181: 56179656.2 | M181: 701118696.3
C182: =C144 -> 50 | D182: Data Network Infrastructure Equipment - post Mar 2007 | E182: 2751680.071 | F182: 2531000 | H182: 5282680.071 | I182: 1265500 | J182: 4017180.071 | K182: 0.55 | L182: 2209449.039 | M182: 3073231.032
C183: =C145 -> 52 | D183: Computer Hardware and system software | E183: 0 | H183: 0 | I183: 0 | J183: 0 | K183: 1 | L183: 0 | M183: 0
C184: =C146 -> 95 | D184: CWIP | E184: 68314217 | H184: 68314217 | I184: 0 | J184: 68314217 | K184: 0 | L184: 0 | M184: 68314217
C185: =IF(ISBLANK('I. Schedule 8 CCA Bridge Year'!C184), "", 'I. Schedule 8 CCA Bridge Year'!C184) ->  | D185: =IF(ISBLANK('I. Schedule 8 CCA Bridge Year'!D184), "", 'I. Schedule 8 CCA Bridge Year'!D184) ->  | E185: 0 | H185: 0 | I185: 0 | J185: 0 | K185: 0 | L185: 0 | M185: 0
C186: =IF(ISBLANK('I. Schedule 8 CCA Bridge Year'!C185), "", 'I. Schedule 8 CCA Bridge Year'!C185) ->  | D186: =IF(ISBLANK('I. Schedule 8 CCA Bridge Year'!D185), "", 'I. Schedule 8 CCA Bridge Year'!D185) ->  | E186: 0 | H186: 0 | I186: 0 | J186: 0 | K186: 0 | L186: 0 | M186: 0
C187: =IF(ISBLANK('I. Schedule 8 CCA Bridge Year'!C186), "", 'I. Schedule 8 CCA Bridge Year'!C186) ->  | D187: =IF(ISBLANK('I. Schedule 8 CCA Bridge Year'!D186), "", 'I. Schedule 8 CCA Bridge Year'!D186) ->  | E187: 0 | H187: 0 | I187: 0 | J187: 0 | K187: 0 | L187: 0 | M187: 0
C188: =IF(ISBLANK('I. Schedule 8 CCA Bridge Year'!C187), "", 'I. Schedule 8 CCA Bridge Year'!C187) ->  | D188: =IF(ISBLANK('I. Schedule 8 CCA Bridge Year'!D187), "", 'I. Schedule 8 CCA Bridge Year'!D187) ->  | E188: 0 | H188: =MAX((SUM(E188:G188)),0) -> 0 | I188: 0 | J188: =+H188-I188 -> 0 | K188: 0 | L188: =IF(+J188<0,+J188,+J188*K188) -> 0 | M188: 0
C189: =IF(ISBLANK('I. Schedule 8 CCA Bridge Year'!C188), "", 'I. Schedule 8 CCA Bridge Year'!C188) ->  | D189: =IF(ISBLANK('I. Schedule 8 CCA Bridge Year'!D188), "", 'I. Schedule 8 CCA Bridge Year'!D188) ->  | E189: 0 | H189: =MAX((SUM(E189:G189)),0) -> 0 | I189: 0 | J189: =+H189-I189 -> 0 | K189: 0 | L189: =IF(+J189<0,+J189,+J189*K189) -> 0 | M189: 0
C190: =IF(ISBLANK('I. Schedule 8 CCA Bridge Year'!C189), "", 'I. Schedule 8 CCA Bridge Year'!C189) ->  | D190: =IF(ISBLANK('I. Schedule 8 CCA Bridge Year'!D189), "", 'I. Schedule 8 CCA Bridge Year'!D189) ->  | E190: 0 | H190: =MAX((SUM(E190:G190)),0) -> 0 | I190: 0 | J190: =+H190-I190 -> 0 | K190: 0 | L190: =IF(+J190<0,+J190,+J190*K190) -> 0 | M190: 0
C191: =IF(ISBLANK('I. Schedule 8 CCA Bridge Year'!C190), "", 'I. Schedule 8 CCA Bridge Year'!C190) ->  | D191: =IF(ISBLANK('I. Schedule 8 CCA Bridge Year'!D190), "", 'I. Schedule 8 CCA Bridge Year'!D190) ->  | E191: 0 | H191: =MAX((SUM(E191:G191)),0) -> 0 | I191: 0 | J191: =+H191-I191 -> 0 | K191: 0 | L191: =IF(+J191<0,+J191,+J191*K191) -> 0 | M191: 0
C192: =IF(ISBLANK('I. Schedule 8 CCA Bridge Year'!C191), "", 'I. Schedule 8 CCA Bridge Year'!C191) ->  | D192: =IF(ISBLANK('I. Schedule 8 CCA Bridge Year'!D191), "", 'I. Schedule 8 CCA Bridge Year'!D191) ->  | E192: 0 | H192: 0 | I192: 0 | J192: 0 | K192: 0 | L192: 0 | M192: 0
C193: =IF(ISBLANK('I. Schedule 8 CCA Bridge Year'!C192), "", 'I. Schedule 8 CCA Bridge Year'!C192) ->  | D193: =IF(ISBLANK('I. Schedule 8 CCA Bridge Year'!D192), "", 'I. Schedule 8 CCA Bridge Year'!D192) ->  | E193: 0 | H193: 0 | I193: 0 | J193: 0 | K193: 0 | L193: 0 | M193: 0
C194: =IF(ISBLANK('I. Schedule 8 CCA Bridge Year'!C193), "", 'I. Schedule 8 CCA Bridge Year'!C193) ->  | D194: =IF(ISBLANK('I. Schedule 8 CCA Bridge Year'!D193), "", 'I. Schedule 8 CCA Bridge Year'!D193) ->  | E194: 0 | H194: 0 | I194: 0 | J194: 0 | K194: =K156 -> 0 | L194: 0 | M194: 0
D195: TOTAL | E195: =SUM(E163:E194) -> 1099513638 | F195: 125407200 | G195: 0 | H195: 1224920838 | I195: 62703600 | J195: 1162217238 | L195: =SUM(L163:L194) -> 87317467.84 | M195: =SUM(M163:M194) -> 1137603370

Sheet P. Schedule 10 CEC Test Year
C5: Schedule 10 CEC | G5: Test Year 1 (2016) | M5: Test Year 2 (2017) | S5: Test Year 3 (2018) | Y5: Test Year 4 (2019) | AE5: Test Year 5 (2020)
C7: Cumulative Eligible Capital | K7: ='J. Schedule 10 CEC Bridge Year'!K40 -> 5055620.86 | Q7: =K39 -> 4725442.4 | W7: =Q39 -> 4415586.432 | AC7: =W39 -> 4130907.882 | AI7: =AC39 -> 3866156.83
C9: Additions
C10: Cost of Eligible Capital Property Acquired during Test Year | G10: 34000 | M10: 30000 | S10: 35000 | Y10: 35000 | AE10: 36000
C12: Other Adjustments | G12: 0 | M12: 0 | S12: 0 | Y12: 0 | AE12: 0
C14: Subtotal | G14: =SUM(G10,G12) -> 34000 | I14: x 3/4 = | J14: =3/4*G14 -> 25500 | M14: =SUM(M10,M12) -> 30000 | O14: x 3/4 = | P14: =3/4*M14 -> 22500 | S14: =SUM(S10,S12) -> 35000 | U14: x 3/4 = | V14: =3/4*S14 -> 26250 | Y14: =SUM(Y10,Y12) -> 35000 | AA14: x 3/4 = | AB14: =3/4*Y14 -> 26250 | AE14: =SUM(AE10,AE12) -> 36000 | AG14: x 3/4 = | AH14: =3/4*AE14 -> 27000
C16: Non-taxable portion of a non-arm's length transferor's gain realized on the | G16: 0 | I16: x 1/2 = | J16: =IF((G16*0.5)<0, 0, G16*0.5) -> 0 | M16: 0 | O16: x 1/2 = | P16: =IF((M16*0.5)<0, 0, M16*0.5) -> 0 | S16: 0 | U16: x 1/2 = | V16: =IF((S16*0.5)<0, 0, S16*0.5) -> 0 | Y16: 0 | AA16: x 1/2 = | AB16: =IF((Y16*0.5)<0, 0, Y16*0.5) -> 0 | AE16: 0 | AG16: x 1/2 = | AH16: =IF((AE16*0.5)<0, 0, AE16*0.5) -> 0
C17: transfer of an ECP to the Corporation after Friday, December 20, 2002
J18: =IF((J14-J16)<0,0,J14-J16) -> 25500 | K18: =J18 -> 25500 | P18: =IF((P14-P16)<0,0,P14-P16) -> 22500 | Q18: =P18 -> 22500 | V18: =IF((V14-V16)<0,0,V14-V16) -> 26250 | W18: =V18 -> 26250 | AB18: =IF((AB14-AB16)<0,0,AB14-AB16) -> 26250 | AC18: =AB18 -> 26250 | AH18: =IF((AH14-AH16)<0,0,AH14-AH16) -> 27000 | AI18: =AH18 -> 27000
C20: Amount transferred on amalgamation or wind-up of subsidiary | G20: 0 | K20: =G20 -> 0 | M20: 0 | Q20: =M20 -> 0 | S20: 0 | W20: =S20 -> 0 | Y20: 0 | AC20: =Y20 -> 0 | AE20: 0 | AI20: =AE20 -> 0
F22: Subtotal | K22: =SUM(K7,K18,K20) -> 5081120.86 | Q22: =SUM(Q7,Q18,Q20) -> 4747942.4 | W22: =SUM(W7,W18,W20) -> 4441836.432 | AC22: =SUM(AC7,AC18,AC20) -> 4157157.882 | AI22: =SUM(AI7,AI18,AI20) -> 3893156.83
C24: Deductions
C26: Proceeds of sale (less outlays and expenses not otherwise deductible) | G26: 0 | M26: 0 | S26: 0 | Y26: 0 | AE26: 0
C27: from the disposition of all ECP during Test Year
C29: Other Adjustments | G29: 0 | M29: 0 | S29: 0 | Y29: 0 | AE29: 0
F31: Subtotal | G31: =SUM(G29,G26) -> 0 | I31: x 3/4 = | K31: =G31*3/4 -> 0 | M31: =SUM(M29,M26) -> 0 | O31: x 3/4 = | Q31: =M31*3/4 -> 0 | S31: =SUM(S29,S26) -> 0 | U31: x 3/4 = | W31: =S31*3/4 -> 0 | Y31: =SUM(Y29,Y26) -> 0 | AA31: x 3/4 = | AC31: =Y31*3/4 -> 0 | AE31: =SUM(AE29,AE26) -> 0 | AG31: x 3/4 = | AI31: =AE31*3/4 -> 0
C35: Cumulative Eligible Capital Balance | K35: =K22-K31 -> 5081120.86 | Q35: =Q22-Q31 -> 4747942.4 | W35: =W22-W31 -> 4441836.432 | AC35: =AC22-AC31 -> 4157157.882 | AI35: =AI22-AI31 -> 3893156.83
C37: Current Year Deduction (Carry Forward to Tab "Test Year Taxable Income") | I37: =K35 -> 5081120.86 | J37: x 7% = | K37: =I37*0.07 -> 355678.4602 | O37: =Q35 -> 4747942.4 | P37: x 7% = | Q37: =O37*0.07 -> 332355.968 | U37: =W35 -> 4441836.432 | V37: x 7% = | W37: =U37*0.07 -> 310928.5502 | AA37: =AC35 -> 4157157.882 | AB37: x 7% = | AC37: =AA37*0.07 -> 291001.0517 | AG37: =AI35 -> 3893156.83 | AH37: x 7% = | AI37: =AG37*0.07 -> 272520.9781
C39: Cumulative Eligible Capital - Closing Balance | K39: =K35-K37 -> 4725442.4 | Q39: =Q35-Q37 -> 4415586.432 | W39: =W35-W37 -> 4130907.882 | AC39: =AC35-AC37 -> 3866156.83 | AI39: =AI35-AI37 -> 3620635.852

Sheet Q Sch 13 Tax Reserve Test Year
C7: Schedule 13 Tax Reserves - Test Year 1 (2016)
C9: Continuity of Reserves
G10: Test Year 1 Adjustments
C11: Description | D11: Bridge Year | E11: Eliminate Amounts Not Relevant for Bridge Year | F11: Adjusted Utility Balance | G11: Additions | H11: Disposals | I11: Balance for Test Year 1 | J11: Change During the Year | K11: Disallowed Expenses
C13: Capital Gains Reserves ss.40(1) | D13: ='K. Sch 13 Tax Reserves Bridge'!I13 -> 0 | F13: =SUM(D13:E13) -> 0 | I13: =F13+G13-H13 -> 0 | J13: =+I13-F13 -> 0
C14: Tax Reserves Not Deducted for accounting purposes
C15: Reserve for doubtful accounts ss. 20(1)(l) | D15: ='K. Sch 13 Tax Reserves Bridge'!I15 -> 0 | F15: =SUM(D15:E15) -> 0 | I15: =F15+G15-H15 -> 0 | J15: =+I15-F15 -> 0
C16: Reserve for goods and services not delivered ss. 20(1)(m) | D16: ='K. Sch 13 Tax Reserves Bridge'!I16 -> 0 | F16: 0 | I16: 0 | J16: 0
C17: Reserve for unpaid amounts ss. 20(1)(n) | D17: ='K. Sch 13 Tax Reserves Bridge'!I17 -> 0 | F17: 0 | I17: 0 | J17: 0
C18: Debt & Share Issue Expenses ss. 20(1)(e) | D18: ='K. Sch 13 Tax Reserves Bridge'!I18 -> 0 | F18: 0 | I18: 0 | J18: 0
C19: Other tax reserves | D19: ='K. Sch 13 Tax Reserves Bridge'!I19 -> 0 | F19: 0 | I19: 0 | J19: 0
D20: ='K. Sch 13 Tax Reserves Bridge'!I20 -> 0 | F20: 0 | I20: 0 | J20: 0
D21: ='K. Sch 13 Tax Reserves Bridge'!I21 -> 0 | F21: 0 | I21: 0 | J21: 0
C22: Total | D22: =SUM(D15:D21) -> 0 | E22: 0 | F22: 0 | G22: 0 | H22: 0 | I22: 0 | J22: 0 | K22: 0
D23: 0
C24: Financial Statement Reserves (not deductible for Tax Purposes)
C25: General Reserve for Inventory Obsolescence (non-specific) | D25: ='K. Sch 13 Tax Reserves Bridge'!I25 -> 0 | F25: =SUM(D25:E25) -> 0 | I25: =F25+G25-H25 -> 0 | J25: =+I25-F25 -> 0
C26: General reserve for bad debts | D26: ='K. Sch 13 Tax Reserves Bridge'!I26 -> 0 | F26: 0 | I26: 0 | J26: 0
C27: Accrued Employee Future Benefits: | D27: ='K. Sch 13 Tax Reserves Bridge'!I27 -> 0 | F27: 0 | I27: 0 | J27: 0
C28: - Medical and Life Insurance | D28: ='K. Sch 13 Tax Reserves Bridge'!I28 -> 19785843 | F28: 19785843 | G28: 637100 | I28: 20422943 | J28: 637100
C29: -Short & Long-term Disability | D29: ='K. Sch 13 Tax Reserves Bridge'!I29 -> 0 | F29: 0 | I29: 0 | J29: 0
C30: -Accmulated Sick Leave | D30: ='K. Sch 13 Tax Reserves Bridge'!I30 -> 0 | F30: 0 | I30: 0 | J30: 0
C31: - Termination Cost | D31: ='K. Sch 13 Tax Reserves Bridge'!I31 -> 0 | F31: 0 | I31: 0 | J31: 0
C32: - Other Post-Employment Benefits | D32: ='K. Sch 13 Tax Reserves Bridge'!I32 -> 0 | F32: 0 | I32: 0 | J32: 0
C33: Provision for Environmental Costs | D33: ='K. Sch 13 Tax Reserves Bridge'!I33 -> 0 | F33: 0 | I33: 0 | J33: 0
C34: Restructuring Costs | D34: ='K. Sch 13 Tax Reserves Bridge'!I34 -> 0 | F34: 0 | I34: 0 | J34: 0
C35: Accrued Contingent Litigation Costs | D35: ='K. Sch 13 Tax Reserves Bridge'!I35 -> 0 | F35: 0 | I35: 0 | J35: 0
C36: Accrued Self-Insurance Costs | D36: ='K. Sch 13 Tax Reserves Bridge'!I36 -> 0 | F36: 0 | I36: 0 | J36: 0
C37: Other Contingent Liabilities | D37: ='K. Sch 13 Tax Reserves Bridge'!I37 -> 0 | F37: 0 | I37: 0 | J37: 0
C38: Bonuses Accrued and Not Paid Within 180 Days of Year-End ss. 78(4) | D38: ='K. Sch 13 Tax Reserves Bridge'!I38 -> 69157 | F38: 69157 | I38: 69157 | J38: 0
C39: Unpaid Amounts to Related Person and Not Paid Within 3 Taxation Years ss. 78(1) | D39: ='K. Sch 13 Tax Reserves Bridge'!I39 -> 0 | F39: 0 | I39: 0 | J39: 0
C40: Other | D40: ='K. Sch 13 Tax Reserves Bridge'!I40 -> 0 | F40: 0 | I40: 0 | J40: 0
D41: ='K. Sch 13 Tax Reserves Bridge'!I41 -> 0 | F41: 0 | I41: 0 | J41: 0
D42: ='K. Sch 13 Tax Reserves Bridge'!I42 -> 0 | F42: 0 | I42: 0 | J42: 0
C43: Total | D43: =SUM(D25:D42) -> 19855000 | E43: 0 | F43: 19855000 | G43: 637100 | H43: 0 | I43: 20492100 | J43: 637100 | K43: 0
D44: 0
C45: Schedule 13 Tax Reserves - Test Year 2 (2017)
C47: Continuity of Reserves
G48: Test Year 2 Adjustments
C49: Description | D49: Test Year 1 (2016) | E49: Eliminate Amounts Not Relevant for Test Year 1 | F49: Adjusted Utility Balance | G49: Additions | H49: Disposals | I49: Balance for Test Year 2 | J49: Change During the Year | K49: Disallowed Expenses
C51: Capital Gains Reserves ss.40(1) | D51: =I13 -> 0 | F51: =SUM(D51:E51) -> 0 | I51: =F51+G51-H51 -> 0 | J51: =+I51-F51 -> 0
C52: Tax Reserves Not Deducted for accounting purposes
C53: Reserve for doubtful accounts ss. 20(1)(l) | D53: =I15 -> 0 | F53: =SUM(D53:E53) -> 0 | I53: =F53+G53-H53 -> 0 | J53: =+I53-F53 -> 0
C54: Reserve for goods and services not delivered ss. 20(1)(m) | D54: =I16 -> 0 | F54: 0 | I54: 0 | J54: 0
C55: Reserve for unpaid amounts ss. 20(1)(n) | D55: 0 | F55: 0 | I55: 0 | J55: 0
C56: Debt & Share Issue Expenses ss. 20(1)(e) | D56: 0 | F56: 0 | I56: 0 | J56: 0
C57: Other tax reserves | D57: 0 | F57: 0 | I57: 0 | J57: 0
D58: 0 | F58: 0 | I58: 0 | J58: 0
D59: 0 | F59: 0 | I59: 0 | J59: 0
C60: Total | D60: =SUM(D53:D59) -> 0 | E60: 0 | F60: 0 | G60: 0 | H60: 0 | I60: 0 | J60: 0 | K60: 0
D61: 0
C62: Financial Statement Reserves (not deductible for Tax Purposes)
C63: General Reserve for Inventory Obsolescence (non-specific) | D63: =I25 -> 0 | F63: =SUM(D63:E63) -> 0 | I63: =F63+G63-H63 -> 0 | J63: =+I63-F63 -> 0
C64: General reserve for bad debts | D64: =I26 -> 0 | F64: 0 | I64: 0 | J64: 0
C65: Accrued Employee Future Benefits: | D65: 0 | F65: 0 | I65: 0 | J65: 0
C66: - Medical and Life Insurance | D66: 20422943 | F66: 20422943 | G66: 637800 | I66: 21060743 | J66: 637800
C67: -Short & Long-term Disability | D67: 0 | F67: 0 | I67: 0 | J67: 0
C68: -Accmulated Sick Leave | D68: 0 | F68: 0 | I68: 0 | J68: 0
C69: - Termination Cost | D69: 0 | F69: 0 | I69: 0 | J69: 0
C70: - Other Post-Employment Benefits | D70: 0 | F70: 0 | I70: 0 | J70: 0
C71: Provision for Environmental Costs | D71: 0 | F71: 0 | I71: 0 | J71: 0
C72: Restructuring Costs | D72: 0 | F72: 0 | I72: 0 | J72: 0
C73: Accrued Contingent Litigation Costs | D73: 0 | F73: 0 | I73: 0 | J73: 0
C74: Accrued Self-Insurance Costs | D74: 0 | F74: 0 | I74: 0 | J74: 0
C75: Other Contingent Liabilities | D75: 0 | F75: 0 | I75: 0 | J75: 0
C76: Bonuses Accrued and Not Paid Within 180 Days of Year-End ss. 78(4) | D76: 69157 | F76: 69157 | I76: 69157 | J76: 0
C77: Unpaid Amounts to Related Person and Not Paid Within 3 Taxation Years ss. 78(1) | D77: 0 | F77: 0 | I77: 0 | J77: 0
C78: Other | D78: 0 | F78: 0 | I78: 0 | J78: 0
D79: 0 | F79: 0 | I79: 0 | J79: 0
D80: 0 | F80: 0 | I80: 0 | J80: 0
C81: Total | D81: =SUM(D63:D80) -> 20492100 | E81: 0 | F81: 20492100 | G81: 637800 | H81: 0 | I81: 21129900 | J81: 637800 | K81: 0
C83: Schedule 13 Tax Reserves - Test Year 3 (2018)
C85: Continuity of Reserves
G86: Test Year 3 Adjustments
C87: Description | D87: Test Year 2 (2017) | E87: Eliminate Amounts Not Relevant for Test Year 2 | F87: Adjusted Utility Balance | G87: Additions | H87: Disposals | I87: Balance for Test Year 3 | J87: Change During the Year | K87: Disallowed Expenses
C89: Capital Gains Reserves ss.40(1) | D89: =I51 -> 0 | F89: =SUM(D89:E89) -> 0 | I89: =F89+G89-H89 -> 0 | J89: =+I89-F89 -> 0
C90: Tax Reserves Not Deducted for accounting purposes
C91: Reserve for doubtful accounts ss. 20(1)(l) | D91: =I53 -> 0 | F91: =SUM(D91:E91) -> 0 | I91: =F91+G91-H91 -> 0 | J91: =+I91-F91 -> 0
C92: Reserve for goods and services not delivered ss. 20(1)(m) | D92: =I54 -> 0 | F92: 0 | I92: 0 | J92: 0
C93: Reserve for unpaid amounts ss. 20(1)(n) | D93: 0 | F93: 0 | I93: 0 | J93: 0
C94: Debt & Share Issue Expenses ss. 20(1)(e) | D94: 0 | F94: 0 | I94: 0 | J94: 0
C95: Other tax reserves | D95: 0 | F95: 0 | I95: 0 | J95: 0
D96: 0 | F96: 0 | I96: 0 | J96: 0
D97: 0 | F97: 0 | I97: 0 | J97: 0
C98: Total | D98: =SUM(D91:D97) -> 0 | E98: 0 | F98: 0 | G98: 0 | H98: 0 | I98: 0 | J98: 0 | K98: 0
D99: 0
C100: Financial Statement Reserves (not deductible for Tax Purposes)
C101: General Reserve for Inventory Obsolescence (non-specific) | D101: =I63 -> 0 | F101: =SUM(D101:E101) -> 0 | I101: =F101+G101-H101 -> 0 | J101: =+I101-F101 -> 0
C102: General reserve for bad debts | D102: =I64 -> 0 | F102: 0 | I102: 0 | J102: 0
C103: Accrued Employee Future Benefits: | D103: 0 | F103: 0 | I103: 0 | J103: 0
C104: - Medical and Life Insurance | D104: 21060743 | F104: 21060743 | G104: 638600 | I104: 21699343 | J104: 638600
C105: -Short & Long-term Disability | D105: 0 | F105: 0 | I105: 0 | J105: 0
C106: -Accmulated Sick Leave | D106: 0 | F106: 0 | I106: 0 | J106: 0
C107: - Termination Cost | D107: 0 | F107: 0 | I107: 0 | J107: 0
C108: - Other Post-Employment Benefits | D108: 0 | F108: 0 | I108: 0 | J108: 0
C109: Provision for Environmental Costs | D109: 0 | F109: 0 | I109: 0 | J109: 0
C110: Restructuring Costs | D110: 0 | F110: 0 | I110: 0 | J110: 0
C111: Accrued Contingent Litigation Costs | D111: 0 | F111: 0 | I111: 0 | J111: 0
C112: Accrued Self-Insurance Costs | D112: 0 | F112: 0 | I112: 0 | J112: 0
C113: Other Contingent Liabilities | D113: 0 | F113: 0 | I113: 0 | J113: 0
C114: Bonuses Accrued and Not Paid Within 180 Days of Year-End ss. 78(4) | D114: 69157 | F114: 69157 | I114: 69157 | J114: 0
C115: Unpaid Amounts to Related Person and Not Paid Within 3 Taxation Years ss. 78(1) | D115: 0 | F115: 0 | I115: 0 | J115: 0
C116: Other | D116: 0 | F116: 0 | I116: 0 | J116: 0
D117: 0 | F117: 0 | I117: 0 | J117: 0
D118: 0 | F118: 0 | I118: 0 | J118: 0
C119: Total | D119: =SUM(D101:D118) -> 21129900 | E119: 0 | F119: 21129900 | G119: 638600 | H119: 0 | I119: 21768500 | J119: 638600 | K119: 0
C121: Schedule 13 Tax Reserves - Test Year 4 (2019)
C123: Continuity of Reserves
G124: Test Year 4 Adjustments
C125: Description | D125: Test Year 3 (2018) | E125: Eliminate Amounts Not Relevant for Test Year 3 | F125: Adjusted Utility Balance | G125: Additions | H125: Disposals | I125: Balance for Test Year 4 | J125: Change During the Year | K125: Disallowed Expenses
C127: Capital Gains Reserves ss.40(1) | D127: =I89 -> 0 | F127: =SUM(D127:E127) -> 0 | I127: =F127+G127-H127 -> 0 | J127: =+I127-F127 -> 0
C128: Tax Reserves Not Deducted for accounting purposes
C129: Reserve for doubtful accounts ss. 20(1)(l) | D129: =I91 -> 0 | F129: =SUM(D129:E129) -> 0 | I129: =F129+G129-H129 -> 0 | J129: =+I129-F129 -> 0
C130: Reserve for goods and services not delivered ss. 20(1)(m) | D130: =I92 -> 0 | F130: 0 | I130: 0 | J130: 0
C131: Reserve for unpaid amounts ss. 20(1)(n) | D131: 0 | F131: 0 | I131: 0 | J131: 0
C132: Debt & Share Issue Expenses ss. 20(1)(e) | D132: 0 | F132: 0 | I132: 0 | J132: 0
C133: Other tax reserves | D133: 0 | F133: 0 | I133: 0 | J133: 0
D134: 0 | F134: 0 | I134: 0 | J134: 0
D135: 0 | F135: 0 | I135: 0 | J135: 0
C136: Total | D136: =SUM(D129:D135) -> 0 | E136: 0 | F136: 0 | G136: 0 | H136: 0 | I136: 0 | J136: 0 | K136: 0
D137: 0
C138: Financial Statement Reserves (not deductible for Tax Purposes)
C139: General Reserve for Inventory Obsolescence (non-specific) | D139: =I101 -> 0 | F139: =SUM(D139:E139) -> 0 | I139: =F139+G139-H139 -> 0 | J139: =+I139-F139 -> 0
C140: General reserve for bad debts | D140: =I102 -> 0 | F140: 0 | I140: 0 | J140: 0
C141: Accrued Employee Future Benefits: | D141: 0 | F141: 0 | I141: 0 | J141: 0
C142: - Medical and Life Insurance | D142: 21699343 | F142: 21699343 | G142: 639400 | I142: 22338743 | J142: 639400
C143: -Short & Long-term Disability | D143: 0 | F143: 0 | I143: 0 | J143: 0
C144: -Accmulated Sick Leave | D144: 0 | F144: 0 | I144: 0 | J144: 0
C145: - Termination Cost | D145: 0 | F145: 0 | I145: 0 | J145: 0
C146: - Other Post-Employment Benefits | D146: 0 | F146: 0 | I146: 0 | J146: 0
C147: Provision for Environmental Costs | D147: 0 | F147: 0 | I147: 0 | J147: 0
C148: Restructuring Costs | D148: 0 | F148: 0 | I148: 0 | J148: 0
C149: Accrued Contingent Litigation Costs | D149: 0 | F149: 0 | I149: 0 | J149: 0
C150: Accrued Self-Insurance Costs | D150: 0 | F150: 0 | I150: 0 | J150: 0
C151: Other Contingent Liabilities | D151: 0 | F151: 0 | I151: 0 | J151: 0
C152: Bonuses Accrued and Not Paid Within 180 Days of Year-End ss. 78(4) | D152: 69157 | F152: 69157 | I152: 69157 | J152: 0
C153: Unpaid Amounts to Related Person and Not Paid Within 3 Taxation Years ss. 78(1) | D153: 0 | F153: 0 | I153: 0 | J153: 0
C154: Other | D154: 0 | F154: 0 | I154: 0 | J154: 0
D155: 0 | F155: 0 | I155: 0 | J155: 0
D156: 0 | F156: 0 | I156: 0 | J156: 0
C157: Total | D157: =SUM(D139:D156) -> 21768500 | E157: 0 | F157: 21768500 | G157: 639400 | H157: 0 | I157: 22407900 | J157: 639400 | K157: 0
C159: Schedule 13 Tax Reserves - Test Year 5 (2020)
C161: Continuity of Reserves
G162: Test Year 5 Adjustments
C163: Description | D163: Test Year 4 (2019) | E163: Eliminate Amounts Not Relevant for Test Year 4 | F163: Adjusted Utility Balance | G163: Additions | H163: Disposals | I163: Balance for Test Year 5 | J163: Change During the Year | K163: Disallowed Expenses
C165: Capital Gains Reserves ss.40(1) | D165: =I127 -> 0 | F165: =SUM(D165:E165) -> 0 | I165: =F165+G165-H165 -> 0 | J165: =+I165-F165 -> 0
C166: Tax Reserves Not Deducted for accounting purposes
C167: Reserve for doubtful accounts ss. 20(1)(l) | D167: =I129 -> 0 | F167: =SUM(D167:E167) -> 0 | I167: =F167+G167-H167 -> 0 | J167: =+I167-F167 -> 0
C168: Reserve for goods and services not delivered ss. 20(1)(m) | D168: =I130 -> 0 | F168: 0 | I168: 0 | J168: 0
C169: Reserve for unpaid amounts ss. 20(1)(n) | D169: 0 | F169: 0 | I169: 0 | J169: 0
C170: Debt & Share Issue Expenses ss. 20(1)(e) | D170: 0 | F170: 0 | I170: 0 | J170: 0
C171: Other tax reserves | D171: 0 | F171: 0 | I171: 0 | J171: 0
D172: 0 | F172: 0 | I172: 0 | J172: 0
D173: 0 | F173: 0 | I173: 0 | J173: 0
C174: Total | D174: =SUM(D167:D173) -> 0 | E174: 0 | F174: 0 | G174: 0 | H174: 0 | I174: 0 | J174: 0 | K174: 0
D175: 0
C176: Financial Statement Reserves (not deductible for Tax Purposes)
C177: General Reserve for Inventory Obsolescence (non-specific) | D177: =I139 -> 0 | F177: =SUM(D177:E177) -> 0 | I177: =F177+G177-H177 -> 0 | J177: =+I177-F177 -> 0
C178: General reserve for bad debts | D178: =I140 -> 0 | F178: 0 | I178: 0 | J178: 0
C179: Accrued Employee Future Benefits: | D179: 0 | F179: 0 | I179: 0 | J179: 0
C180: - Medical and Life Insurance | D180: 22338743 | F180: 22338743 | G180: 640200 | I180: 22978943 | J180: 640200
C181: -Short & Long-term Disability | D181: 0 | F181: 0 | I181: 0 | J181: 0
C182: -Accmulated Sick Leave | D182: 0 | F182: 0 | I182: 0 | J182: 0
C183: - Termination Cost | D183: 0 | F183: 0 | I183: 0 | J183: 0
C184: - Other Post-Employment Benefits | D184: 0 | F184: 0 | I184: 0 | J184: 0
C185: Provision for Environmental Costs | D185: 0 | F185: 0 | I185: 0 | J185: 0
C186: Restructuring Costs | D186: 0 | F186: 0 | I186: 0 | J186: 0
C187: Accrued Contingent Litigation Costs | D187: 0 | F187: 0 | I187: 0 | J187: 0
C188: Accrued Self-Insurance Costs | D188: 0 | F188: 0 | I188: 0 | J188: 0
C189: Other Contingent Liabilities | D189: 0 | F189: 0 | I189: 0 | J189: 0
C190: Bonuses Accrued and Not Paid Within 180 Days of Year-End ss. 78(4) | D190: 69157 | F190: 69157 | I190: 69157 | J190: 0
C191: Unpaid Amounts to Related Person and Not Paid Within 3 Taxation Years ss. 78(1) | D191: 0 | F191: 0 | I191: 0 | J191: 0
C192: Other | D192: 0 | F192: 0 | I192: 0 | J192: 0
D193: 0 | F193: 0 | I193: 0 | J193: 0
D194: 0 | F194: 0 | I194: 0 | J194: 0
C195: Total | D195: =SUM(D177:D194) -> 22407900 | E195: 0 | F195: 22407900 | G195: 640200 | H195: 0 | I195: 23048100 | J195: 640200 | K195: 0

Sheet R. Sch 7-1 Loss Cfwd
C7: Schedule 7-1 Loss Carry Forward | F7: Test Year 1 (2016) | J7: Test Year 2 (2017) | N7: Test Year 3 (2018) | R7: Test Year 4 (2019) | V7: Test Year 5 (2020)
C9: Corporation Loss Continuity and Application
C11: Non-Capital Loss Carry Forward Deduction | F11: Total | G11: Non-Distribution Portion | H11: Utility Balance | J11: Total | K11: Non-Distribution Portion | L11: Utility Balance | N11: Total | O11: Non-Distribution Portion | P11: Utility Balance | R11: Total | S11: Non-Distribution Portion | T11: Utility Balance | V11: Total | W11: Non-Distribution Portion | X11: Utility Balance
C12: Actual/Estimated Bridge Year | H12: =F12-G12 -> 0 | L12: =J12-K12 -> 0 | P12: =N12-O12 -> 0 | T12: =R12-S12 -> 0 | X12: =V12-W12 -> 0
C13: Application of Loss Carry Forward to reduce taxable income in 2005 | H13: =F13-G13 -> 0 | L13: =J13-K13 -> 0 | P13: =N13-O13 -> 0 | T13: =R13-S13 -> 0 | X13: =V13-W13 -> 0
C14: Other Adjustments Add (+) Deduct (-) | H14: =F14-G14 -> 0 | L14: =J14-K14 -> 0 | P14: =N14-O14 -> 0 | T14: =R14-S14 -> 0 | X14: =V14-W14 -> 0
C15: Balance available for use in Test Year | F15: =F12-F13+F14 -> 0 | G15: =G12-G13+G14 -> 0 | H15: =H12-H13+H14 -> 0 | J15: =J12-J13+J14 -> 0 | K15: =K12-K13+K14 -> 0 | L15: =L12-L13+L14 -> 0 | N15: =N12-N13+N14 -> 0 | O15: =O12-O13+O14 -> 0 | P15: =P12-P13+P14 -> 0 | R15: =R12-R13+R14 -> 0 | S15: =S12-S13+S14 -> 0 | T15: =T12-T13+T14 -> 0 | V15: =V12-V13+V14 -> 0 | W15: =W12-W13+W14 -> 0 | X15: =X12-X13+X14 -> 0
C16: Amount to be used in Test Year | H16: =F16-G16 -> 0 | L16: =J16-K16 -> 0 | P16: =N16-O16 -> 0 | T16: =R16-S16 -> 0 | X16: =V16-W16 -> 0
C17: Balance available for use post Test Year | F17: =F15-F16 -> 0 | G17: =G15-G16 -> 0 | H17: =H15-H16 -> 0 | J17: =J15-J16 -> 0 | K17: =K15-K16 -> 0 | L17: =L15-L16 -> 0 | N17: =N15-N16 -> 0 | O17: =O15-O16 -> 0 | P17: =P15-P16 -> 0 | R17: =R15-R16 -> 0 | S17: =S15-S16 -> 0 | T17: =T15-T16 -> 0 | V17: =V15-V16 -> 0 | W17: =W15-W16 -> 0 | X17: =X15-X16 -> 0
C19: Net Capital Loss Carry Forward Deduction | F19: Total | G19: Non-Distribution Portion | H19: Utility Balance | J19: Total | K19: Non-Distribution Portion | L19: Utility Balance | N19: Total | O19: Non-Distribution Portion | P19: Utility Balance | R19: Total | S19: Non-Distribution Portion | T19: Utility Balance | V19: Total | W19: Non-Distribution Portion | X19: Utility Balance
C20: Actual/Estimated Bridge Year | H20: =F20-G20 -> 0 | L20: =J20-K20 -> 0 | P20: =N20-O20 -> 0 | T20: =R20-S20 -> 0 | X20: =V20-W20 -> 0
C21: Application of Loss Carry Forward to reduce taxable income in 2005 | H21: =F21-G21 -> 0 | L21: =J21-K21 -> 0 | P21: =N21-O21 -> 0 | T21: =R21-S21 -> 0 | X21: =V21-W21 -> 0
C22: Other Adjustments Add (+) Deduct (-) | H22: =F22-G22 -> 0 | L22: =J22-K22 -> 0 | P22: =N22-O22 -> 0 | T22: =R22-S22 -> 0 | X22: =V22-W22 -> 0
C23: Balance available for use in Test Year | F23: =F20-F21+F22 -> 0 | G23: =G20-G21+G22 -> 0 | H23: =H20-H21+H22 -> 0 | J23: =J20-J21+J22 -> 0 | K23: =K20-K21+K22 -> 0 | L23: =L20-L21+L22 -> 0 | N23: =N20-N21+N22 -> 0 | O23: =O20-O21+O22 -> 0 | P23: =P20-P21+P22 -> 0 | R23: =R20-R21+R22 -> 0 | S23: =S20-S21+S22 -> 0 | T23: =T20-T21+T22 -> 0 | V23: =V20-V21+V22 -> 0 | W23: =W20-W21+W22 -> 0 | X23: =X20-X21+X22 -> 0
C24: Amount to be used in Test Year | H24: =F24-G24 -> 0 | L24: =J24-K24 -> 0 | P24: =N24-O24 -> 0 | T24: =R24-S24 -> 0 | X24: =V24-W24 -> 0
C25: Balance available for use post Test Year | F25: =F23-F24 -> 0 | G25: =G23-G24 -> 0 | H25: =H23-H24 -> 0 | J25: =J23-J24 -> 0 | K25: =K23-K24 -> 0 | L25: =L23-L24 -> 0 | N25: =N23-N24 -> 0 | O25: =O23-O24 -> 0 | P25: =P23-P24 -> 0 | R25: =R23-R24 -> 0 | S25: =S23-S24 -> 0 | T25: =T23-T24 -> 0 | V25: =V23-V24 -> 0 | W25: =W23-W24 -> 0 | X25: =X23-X24 -> 0

Sheet S. Taxable Income Test Year
C9: Taxable Income - Test Years (2016 - 2020)
E11: Test Year 1 (2016) Taxable Income | F11: Test Year 2 (2017) Taxable Income | G11: Test Year 3 (2018) Taxable Income | H11: Test Year 4 (2019) Taxable Income | I11: Test Year 5 (2020) Taxable Income
C12: Net Income Before Taxes | E12: ='A. Data Input Sheet'!G18 -> 39851163.39 | F12: ='A. Data Input Sheet'!H18 -> 40398338.12 | G12: ='A. Data Input Sheet'!I18 -> 43161502.69 | H12: ='A. Data Input Sheet'!J18 -> 45765346.34 | I12: ='A. Data Input Sheet'!K18 -> 48393149.65
D14: T2 S1 line #
C15: Additions:
C16: Interest and penalties on taxes | D16: 103
C17: Amortization of tangible assets 2-4 ADJUSTED ACCOUNTING DATA P489 | D17: 104 | E17: 49890000 | F17: 53803000 | G17: 56893000 | H17: 59975000 | I17: 63137000
C18: Amortization of intangible assets 2-4 ADJUSTED ACCOUNTING DATA P490 | D18: 106
C19: Recapture of capital cost allowance from Schedule 8 | D19: 107
C20: Gain on sale of eligible capital property from Schedule 10 | D20: 108
C21: Income or loss for tax purposes- joint ventures or partnerships | D21: 109
C22: Loss in equity of subsidiaries and affiliates | D22: 110
C23: Loss on disposal of assets | D23: 111
C24: Charitable donations | D24: 112 | E24: 300000 | F24: 300000 | G24: 300000 | H24: 300000 | I24: 300000
C25: Taxable Capital Gains | D25: 113
C26: Political Donations | D26: 114
C27: Deferred and prepaid expenses | D27: 116
C28: Scientific research expenditures deducted on financial statements | D28: 118
C29: Capitalized interest | D29: 119
C30: Non-deductible club dues and fees | D30: 120 | E30: 51800 | F30: =+E30*1.02 -> 52836 | G30: =+F30*1.02 -> 53892.72 | H30: 54970.5744 | I30: 56069.98589
C31: Non-deductible meals and entertainment expense | D31: 121 | E31: 122500 | F31: =+E31*1.02 -> 124950 | G31: 127449 | H31: 129997.98 | I31: 132597.9396
C32: Non-deductible automobile expenses | D32: 122 | E32: 11000 | F32: =+E32*1.02 -> 11220 | G32: 11444.4 | H32: 11673.288 | I32: 11906.75376
C33: Non-deductible life insurance premiums | D33: 123
C34: Non-deductible company pension plans | D34: 124
C35: Tax reserves beginning of year | D35: 125 | E35: ='Q Sch 13 Tax Reserve Test Year'!F22 -> 0 | F35: ='Q Sch 13 Tax Reserve Test Year'!F60 -> 0 | G35: ='Q Sch 13 Tax Reserve Test Year'!F98 -> 0 | H35: ='Q Sch 13 Tax Reserve Test Year'!F136 -> 0 | I35: ='Q Sch 13 Tax Reserve Test Year'!F174 -> 0
C36: Reserves from financial statements- balance at end of year | D36: 126 | E36: ='Q Sch 13 Tax Reserve Test Year'!I43 -> 20492100 | F36: ='Q Sch 13 Tax Reserve Test Year'!I81 -> 21129900 | G36: ='Q Sch 13 Tax Reserve Test Year'!I119 -> 21768500 | H36: ='Q Sch 13 Tax Reserve Test Year'!I157 -> 22407900 | I36: ='Q Sch 13 Tax Reserve Test Year'!I195 -> 23048100
C37: Soft costs on construction and renovation of buildings | D37: 127
C38: Book loss on joint ventures or partnerships | D38: 205
C39: Capital items expensed | D39: 206
C40: Debt issue expense | D40: 208 | E40: 41100 | F40: 41100 | G40: 41100 | H40: 41100 | I40: 41100
C41: Development expenses claimed in current year | D41: 212
C42: Financing fees deducted in books | D42: 216
C43: Gain on settlement of debt | D43: 220
C44: Non-deductible advertising | D44: 226
C45: Non-deductible interest | D45: 227
C46: Non-deductible legal and accounting fees | D46: 228
C47: Recapture of SR&ED expenditures | D47: 231
C48: Share issue expense | D48: 235
C49: Write down of capital property | D49: 236
C50: Amounts received in respect of qualifying environment trust per paragraphs 12(1)(z.1) and 12(1)(z.2) | D50: 237
C51: Other Additions: (please explain in detail the nature of the item)
C52: Interest Expensed on Capital Leases | D52: 290
C53: Realized Income from Deferred Credit Accounts | D53: 291
C54: Pensions | D54: 292
C55: Non-deductible penalties | D55: 293
C56: Ontario Tax Credits - Co-op | D56: 294 | E56: 209100 | F56: =+E56*1.02 -> 213282 | G56: =+F56*1.02 -> 217547.64 | H56: 221898.5928 | I56: 226336.5647
C57: Ontario Tax Credits - Apprentice | D57: 295 | E57: 306900 | F57: =+E57*1.02 -> 313038 | G57: 319298.76 | H57: 325684.7352 | I57: 332198.4299
C58: Interest on building lease | D58: 296 | E58: 1093200 | F58: 1070391 | G58: 1046046 | H58: 1020053 | I58: 992299
D59: 297
C60: ARO Accretion expense
C61: Capital Contributions Received (ITA 12(1)(x))
C62: Lease Inducements Received (ITA 12(1)(x))
C63: Deferred Revenue (ITA 12(1)(a))
C64: Prior Year Investment Tax Credits received
C75: Total Additions | E75: =SUM(E16:E74) -> 72517700 | F75: =SUM(F16:F74) -> 77059717 | G75: 80778278.52 | H75: 84488278.17 | I75: 88277608.67
C76: Deductions:
C77: Gain on disposal of assets per financial statements | D77: 401 | E77: 61000 | F77: 61000 | G77: 61000 | H77: 61000 | I77: 61000
C78: Dividends not taxable under section 83 | D78: 402
C79: Capital cost allowance from Schedule 8 | D79: 403 | E79: ='O. Schedule 8 CCA Test Year '!L43 -> 93624701.77 | F79: ='O. Schedule 8 CCA Test Year '!L81 -> 77438109.61 | G79: ='O. Schedule 8 CCA Test Year '!L119 -> 78686297.57 | H79: ='O. Schedule 8 CCA Test Year '!L157 -> 82150190.16 | I79: ='O. Schedule 8 CCA Test Year '!L195 -> 87317467.84
C80: Terminal loss from Schedule 8 | D80: 404
C81: Cumulative eligible capital deduction from Schedule 10 CEC | D81: 405 | E81: ='P. Schedule 10 CEC Test Year'!K37 -> 355678.4602 | F81: ='P. Schedule 10 CEC Test Year'!Q37 -> 332355.968 | G81: ='P. Schedule 10 CEC Test Year'!W37 -> 310928.5502 | H81: ='P. Schedule 10 CEC Test Year'!AC37 -> 291001.0517 | I81: ='P. Schedule 10 CEC Test Year'!AI37 -> 272520.9781
C82: Allowable business investment loss | D82: 406
C83: Deferred and prepaid expenses | D83: 409
C84: Scientific research expenses claimed in year | D84: 411 | E84: 1407863 | F84: 1407863 | G84: 1407863 | H84: 1407863 | I84: 1407863
C85: Tax reserves end of year | D85: 413 | E85: ='Q Sch 13 Tax Reserve Test Year'!I22 -> 0 | F85: ='Q Sch 13 Tax Reserve Test Year'!I60 -> 0 | G85: ='Q Sch 13 Tax Reserve Test Year'!I98 -> 0 | H85: ='Q Sch 13 Tax Reserve Test Year'!I136 -> 0 | I85: ='Q Sch 13 Tax Reserve Test Year'!I174 -> 0
C86: Reserves from financial statements - balance at beginning of year | D86: 414 | E86: ='Q Sch 13 Tax Reserve Test Year'!F43 -> 19855000 | F86: ='Q Sch 13 Tax Reserve Test Year'!F81 -> 20492100 | G86: ='Q Sch 13 Tax Reserve Test Year'!F119 -> 21129900 | H86: ='Q Sch 13 Tax Reserve Test Year'!F157 -> 21768500 | I86: ='Q Sch 13 Tax Reserve Test Year'!F195 -> 22407900
C87: Contributions to deferred income plans | D87: 416
C88: Book income of joint venture or partnership | D88: 305
C89: Equity in income from subsidiary or affiliates | D89: 306
C90: Other deductions: (Please explain in detail the nature of the item)
C91: Interest capitalized for accounting deducted for tax | D91: 390 | E91: 1296000 | F91: 1283000 | G91: 1224000 | H91: 1224000 | I91: 1224000
C92: Capital Lease Payments | D92: 391
C93: Non-taxable imputed interest income on deferral and variance accounts | D93: 392
D94: 393
D95: 394
D96: 395
D97: 396
D98: 397
C99: ARO Payments - Deductible for Tax when Paid
C100: ITA 13(7.4) Election - Capital Contributions Received
C101: ITA 13(7.4) Election - Apply Lease Inducement to cost of Leaseholds
C102: Deferred Revenue - ITA 20(1)(m) reserve
C103: Principal portion of lease payments | E103: 1429900 | F103: 1429900 | G103: 1429900 | H103: 1429900 | I103: 1429900
C104: Lease Inducement Book Amortization credit to income
C105: Financing fees for tax ITA 20(1)(e) and (e.1) | E105: 474800 | F105: =+E105*1.02 -> 484296 | G105: =+F105*1.02 -> 493981.92 | H105: 503861.5584 | I105: 513938.7896
C114: Total Deductions | E114: =SUM(E77:E113) -> 118504943.2 | F114: =SUM(F77:F113) -> 102928624.6 | G114: 104743871 | H114: 108836315.8 | I114: 114634590.6
C116: NET INCOME FOR TAX PURPOSES | E116: =SUM(E12,E75)-E114 -> -6136079.841 | F116: =SUM(F12,F75)-F114 -> 14529430.54 | G116: 19195910.18 | H116: 21417308.74 | I116: 22036167.72
C118: Charitable donations | D118: 311 | E118: 300000 | F118: 300000 | G118: 300000 | H118: 300000 | I118: 300000
C119: Taxable dividends received under section 112 or 113 | D119: 320
C120: Non-capital losses of preceding taxation years from Schedule 7-1 | D120: 331
C121: Net-capital losses of preceding taxation years (Please show calculation) | D121: 332
C122: Limited partnership losses of preceding taxation years from Schedule 4 | D122: 335
C124: REGULATORY TAXABLE INCOME | E124: =E116-SUM(E118:E123) -> -6436079.841 | F124: =F116-SUM(F118:F123) -> 14229430.54 | G124: 18895910.18 | H124: 21117308.74 | I124: 21736167.72
E127: =E124-E12 -> -46287243.23 | F127: =F124-F12 -> -26168907.58 | G127: -24265592.52 | H127: -24648037.6 | I127: -26656981.93

Sheet T. PILs,Tax Provision
B7: PILs Tax Provision - Test Year 1 (2016)
I8: Wires Only
C10: Regulatory Taxable Income | I10: ='S. Taxable Income Test Year'!E124 -> -6436079.841 | J10: A
C12: Ontario Income Taxes
C13: Income tax payable | D13: Ontario Income Tax | E13: =IF(I10<=500000,'B. Tax Rates & Exemptions'!J31,'B. Tax Rates & Exemptions'!J21) -> 0.045 | F13: B | G13: =IF(I10>0,I10*E13,0) -> 0 | H13: C = A * B
C15: Small business credit | D15: Ontario Small Business Threshold | E15: =IF(I10>'B. Tax Rates & Exemptions'!J27,'B. Tax Rates & Exemptions'!J27,0) -> 0 | F15: D
D16: Rate reduction | E16: =-('B. Tax Rates & Exemptions'!J21-'B. Tax Rates & Exemptions'!J31) -> -0.07 | F16: E | G16: =IF(I10>0,E15*E16,0) -> 0 | H16: F = D * E
C20: Ontario Income tax | I20: =SUM(G13:G19) -> 0 | J20: J = C + F
C23: Combined Tax Rate and PILs | D23: Effective Ontario Tax Rate | G23: 0.115 | H23: K = J / A
D24: Federal tax rate | G24: 0.15 | H24: L
D25: Combined tax rate | I25: =SUM(G23:G24) -> 0.265 | J25: M = K + L
C28: Total Income Taxes | I28: =I10*I25 -> -1705561.158 | J28: N = A * M
C30: Investment Tax Credits | I30: 605593 | J30: O
C31: Miscellaneous Tax Credits | I31: =209100+306900 -> 516000 | J31: P
C32: Total Tax Credits | I32: =SUM(I30:I31) -> 1121593 | J32: Q = O + P
C34: Corporate PILs/Income Tax Provision for Test Year | I34: =+I28-I32 -> -2827154.158 | J34: R = N - Q
C36: Corporate PILs/Income Tax Provision Gross Up 1 | G36: =(1-I25) -> 0.735 | H36: S = 1 - M | I36: =I34/G36-I34 -> -1019314.084 | J36: T = R / S - R
C39: Income Tax (grossed-up) | I39: =I34+I36 -> -3846468.242 | J39: U = R + T
C42: Note:
C43: 1. This is for the derivation of revenue requirement and should not be used for sufficiency/deficiency calculations.
B45: PILs Tax Provision - Test Year 2 (2017)
I46: Wires Only
C48: Regulatory Taxable Income | I48: ='S. Taxable Income Test Year'!F124 -> 14229430.54 | J48: A
C50: Ontario Income Taxes
C51: Income tax payable | D51: Ontario Income Tax | E51: =IF(I48<=500000,'B. Tax Rates & Exemptions'!K$31,'B. Tax Rates & Exemptions'!K$21) -> 0.115 | F51: B | G51: =IF(I48>0,I48*E51,0) -> 1636384.512 | H51: C = A * B
C53: Small business credit | D53: Ontario Small Business Threshold | E53: =IF(I48>'B. Tax Rates & Exemptions'!K$27,'B. Tax Rates & Exemptions'!K$27,0) -> 500000 | F53: D
D54: Rate reduction | E54: =-('B. Tax Rates & Exemptions'!K$21-'B. Tax Rates & Exemptions'!K$31) -> -0.07 | F54: E | H54: F = D * E
C58: Ontario Income tax | I58: =SUM(G51:G57) -> 1636384.512 | J58: J = C + F
C61: Combined Tax Rate and PILs | D61: Effective Ontario Tax Rate | G61: =IF(I48>0,I58/I48,0) -> 0.115 | H61: K = J / A
D62: Federal tax rate | G62: =IF(I48<=0,0,IF(I48<=500000,'B. Tax Rates & Exemptions'!K$29,'B. Tax Rates & Exemptions'!K$19)) -> 0.15 | H62: L
D63: Combined tax rate | I63: =SUM(G61:G62) -> 0.265 | J63: M = K + L
C66: Total Income Taxes | I66: =I48*I63 -> 3770799.093 | J66: N = A * M
C68: Investment Tax Credits | I68: 605593 | J68: O
C69: Miscellaneous Tax Credits | I69: =213300+313100 -> 526400 | J69: P
C70: Total Tax Credits | I70: =SUM(I68:I69) -> 1131993 | J70: Q = O + P
C72: Corporate PILs/Income Tax Provision for Test Year | I72: =IF(I66-I70<0,0,I66-I70) -> 2638806.093 | J72: R = N - Q
C74: Corporate PILs/Income Tax Provision Gross Up 1 | G74: =(1-I63) -> 0.735 | H74: S = 1 - M | I74: =I72/G74-I72 -> 951406.2785 | J74: T = R / S - R
C77: Income Tax (grossed-up) | I77: =I72+I74 -> 3590212.372 | J77: U = R + T
B81: PILs Tax Provision - Test Year 3 (2018)
I82: Wires Only
C84: Regulatory Taxable Income | I84: ='S. Taxable Income Test Year'!G124 -> 18895910.18 | J84: A
C86: Ontario Income Taxes
C87: Income tax payable | D87: Ontario Income Tax | E87: =IF(I84<=500000,'B. Tax Rates & Exemptions'!L$31,'B. Tax Rates & Exemptions'!L$21) -> 0.115 | F87: B | G87: =IF(I84>0,I84*E87,0) -> 2173029.67 | H87: C = A * B
C89: Small business credit | D89: Ontario Small Business Threshold | E89: =IF(I84>'B. Tax Rates & Exemptions'!L$27,'B. Tax Rates & Exemptions'!L$27,0) -> 500000 | F89: D
D90: Rate reduction | E90: =-('B. Tax Rates & Exemptions'!L$21-'B. Tax Rates & Exemptions'!L$31) -> -0.07 | F90: E | H90: F = D * E
C94: Ontario Income tax | I94: =SUM(G87:G93) -> 2173029.67 | J94: J = C + F
C97: Combined Tax Rate and PILs | D97: Effective Ontario Tax Rate | G97: =IF(I84>0,I94/I84,0) -> 0.115 | H97: K = J / A
D98: Federal tax rate | G98: =IF(I84<=0,0,IF(I84<=500000,'B. Tax Rates & Exemptions'!L$29,'B. Tax Rates & Exemptions'!L$19)) -> 0.15 | H98: L
D99: Combined tax rate | I99: =SUM(G97:G98) -> 0.265 | J99: M = K + L
C102: Total Income Taxes | I102: =I84*I99 -> 5007416.197 | J102: N = A * M
C104: Investment Tax Credits | I104: 605593 | J104: O
C105: Miscellaneous Tax Credits | I105: =217600+319300 -> 536900 | J105: P
C106: Total Tax Credits | I106: =SUM(I104:I105) -> 1142493 | J106: Q = O + P
C108: Corporate PILs/Income Tax Provision for Test Year | I108: =IF(I102-I106<0,0,I102-I106) -> 3864923.197 | J108: R = N - Q
C110: Corporate PILs/Income Tax Provision Gross Up 1 | G110: =(1-I99) -> 0.735 | H110: S = 1 - M | I110: =I108/G110-I108 -> 1393475.711 | J110: T = R / S - R
C113: Income Tax (grossed-up) | I113: =I108+I110 -> 5258398.908 | J113: U = R + T
B117: PILs Tax Provision - Test Year 4 (2019)
I118: Wires Only
C120: Regulatory Taxable Income | I120: ='S. Taxable Income Test Year'!H124 -> 21117308.74 | J120: A
C122: Ontario Income Taxes
C123: Income tax payable | D123: Ontario Income Tax | E123: =IF(I120<=500000,'B. Tax Rates & Exemptions'!M$31,'B. Tax Rates & Exemptions'!M$21) -> 0.115 | F123: B | G123: =IF(I120>0,I120*E123,0) -> 2428490.505 | H123: C = A * B
C125: Small business credit | D125: Ontario Small Business Threshold | E125: =IF(I120>'B. Tax Rates & Exemptions'!M$27,'B. Tax Rates & Exemptions'!M$27,0) -> 500000 | F125: D
D126: Rate reduction | E126: =-('B. Tax Rates & Exemptions'!M$21-'B. Tax Rates & Exemptions'!M$31) -> -0.07 | F126: E | H126: F = D * E
C130: Ontario Income tax | I130: =SUM(G123:G129) -> 2428490.505 | J130: J = C + F
C133: Combined Tax Rate and PILs | D133: Effective Ontario Tax Rate | G133: =IF(I120>0,I130/I120,0) -> 0.115 | H133: K = J / A
D134: Federal tax rate | G134: =IF(I120<=0,0,IF(I120<=500000,'B. Tax Rates & Exemptions'!M$29,'B. Tax Rates & Exemptions'!M$19)) -> 0.15 | H134: L
D135: Combined tax rate | I135: =SUM(G133:G134) -> 0.265 | J135: M = K + L
C138: Total Income Taxes | I138: =I120*I135 -> 5596086.815 | J138: N = A * M
C140: Investment Tax Credits | I140: 605593 | J140: O
C141: Miscellaneous Tax Credits | I141: =221900+325700 -> 547600 | J141: P
C142: Total Tax Credits | I142: =SUM(I140:I141) -> 1153193 | J142: Q = O + P
C144: Corporate PILs/Income Tax Provision for Test Year | I144: =IF(I138-I142<0,0,I138-I142) -> 4442893.815 | J144: R = N - Q
C146: Corporate PILs/Income Tax Provision Gross Up 1 | G146: =(1-I135) -> 0.735 | H146: S = 1 - M | I146: =I144/G146-I144 -> 1601859.675 | J146: T = R / S - R
C149: Income Tax (grossed-up) | I149: =I144+I146 -> 6044753.49 | J149: U = R + T
B153: PILs Tax Provision - Test Year 5 (2020)
I154: Wires Only
C156: Regulatory Taxable Income | I156: ='S. Taxable Income Test Year'!I124 -> 21736167.72 | J156: A
C158: Ontario Income Taxes
C159: Income tax payable | D159: Ontario Income Tax | E159: =IF(I156<=500000,'B. Tax Rates & Exemptions'!N$31,'B. Tax Rates & Exemptions'!N$21) -> 0.115 | F159: B | G159: =IF(I156>0,I156*E159,0) -> 2499659.288 | H159: C = A * B
C161: Small business credit | D161: Ontario Small Business Threshold | E161: =IF(I156>'B. Tax Rates & Exemptions'!N$27,'B. Tax Rates & Exemptions'!N$27,0) -> 500000 | F161: D
D162: Rate reduction | E162: =-('B. Tax Rates & Exemptions'!N$21-'B. Tax Rates & Exemptions'!N$31) -> -0.07 | F162: E | H162: F = D * E
C166: Ontario Income tax | I166: =SUM(G159:G165) -> 2499659.288 | J166: J = C + F
C169: Combined Tax Rate and PILs | D169: Effective Ontario Tax Rate | G169: =IF(I156>0,I166/I156,0) -> 0.115 | H169: K = J / A
D170: Federal tax rate | G170: =IF(I156<=0,0,IF(I156<=500000,'B. Tax Rates & Exemptions'!N$29,'B. Tax Rates & Exemptions'!N$19)) -> 0.15 | H170: L
D171: Combined tax rate | I171: =SUM(G169:G170) -> 0.265 | J171: M = K + L
C174: Total Income Taxes | I174: =I156*I171 -> 5760084.447 | J174: N = A * M
C176: Investment Tax Credits | I176: 605593 | J176: O
C177: Miscellaneous Tax Credits | I177: =226400+332200 -> 558600 | J177: P
C178: Total Tax Credits | I178: =SUM(I176:I177) -> 1164193 | J178: Q = O + P
C180: Corporate PILs/Income Tax Provision for Test Year | I180: =IF(I174-I178<0,0,I174-I178) -> 4595891.447 | J180: R = N - Q
C182: Corporate PILs/Income Tax Provision Gross Up 1 | G182: =(1-I171) -> 0.735 | H182: S = 1 - M | I182: =I180/G182-I180 -> 1657022.086 | J182: T = R / S - R
C185: Income Tax (grossed-up) | I185: =I180+I182 -> 6252913.533 | J185: U = R + T
